Workbook

Sheet notes (hidden)
A1: Current Date | B1: 2025-08-29
A3: version | B3: Date Created | C3: Notes | D3: Created by
A4: 1 | B4: 2025-08-29 | C4: Change allolcated set a side formula | D4: Viv
A5: 2 | B5: 2025-08-29 | C5: Change allolcated set a side formula | D5: Viv
B6: 2025-08-29 | C6: Undergraduate Allocated set a side 97% per Madiha Syeda 8/20/25 | D6: Viv
B7: 2025-08-29 | C7: Graduate Allocated set a side 85% per per Madiha Syeda 8/20/25 | D7: Viv
B8: 2025-08-29 | C8: update Tuition groups to FY26 table from Gretta McClain Gibbs | D8: Viv
B9: 2025-08-29 | C9: update UG and GRAD set a side | D9: Viv
A20: This pro-forma is use to calculate new program profit loss in a 5 years period
A21: This form use by Craig and Marshall
A22: normally complete by department
A23: shall update as requested
B24: input
A26: to change the list in "Revenue Basis" tab, right click on the dropdown and select format control
A27: when add any new column to the "tuition groups table" remember to change the formula to C15, B18,C18
A29: Change "Pro Forma" tab F76 thru J76 formulas since the number of rows for tuition table has changed
A32: Undergraduate Allocated set a side
A33: =(0.2*(I6-46))*0.957
A35: 0.20 is 15% set a side by law and 5% B on Time
A36: $46 is the amount that is allow in statue
A37: 0.957 is the ratio of resident over non-resident. THIS NUMBER WILL CHANGE EVERY YEAR. PLEASE CONTACT KARIN LIVINGSTON FOR A NEW RATIO | D37: received updated % by Susan Li 6/24/2021
A39: Graduate Allocated set a side
A40: =(0.15*(I20-46))*0.704
A42: 0.15 is 15% set a side by law
A43: $46 is the amount that is allow in statue
A44: 0.728 is the ratio of resident over non-resident. THIS NUMBER WILL CHANGE EVERY YEAR. PLEASE CONTACT KARIN LIVINGSTON FOR A NEW RATIO | D44: received updated % by Susan Li 6/24/2021

Sheet Pro Forma
A1: PRO FORMA FOR BS in
F3: Operating Years
B4: 14 | E4: Year 0 | F4: =VLOOKUP($B$4,'Biennum for formula funding'!$A$2:$H$24,2,FALSE) -> FY2027 | G4: =VLOOKUP($B$4+1,'Biennum for formula funding'!$A$2:$H$24,2,FALSE) -> FY2028 | H4: =VLOOKUP($B$4+2,'Biennum for formula funding'!$A$2:$H$24,2,FALSE) -> FY2029 | I4: =VLOOKUP($B$4+3,'Biennum for formula funding'!$A$2:$H$24,2,FALSE) -> FY2030 | J4: =VLOOKUP($B$4+4,'Biennum for formula funding'!$A$2:$H$24,2,FALSE) -> FY2031
A5: Enrollments | F5: =VLOOKUP($B$4,'Biennum for formula funding'!$A$2:$H$24,3,FALSE) -> Fall26 | G5: =VLOOKUP($B$4+1,'Biennum for formula funding'!$A$2:$H$24,3,FALSE) -> Fall27 | H5: =VLOOKUP($B$4+2,'Biennum for formula funding'!$A$2:$H$24,3,FALSE) -> Fall28 | I5: =VLOOKUP($B$4+3,'Biennum for formula funding'!$A$2:$H$24,3,FALSE) -> Fall29 | J5: =VLOOKUP($B$4+4,'Biennum for formula funding'!$A$2:$H$24,3,FALSE) -> Fall30 | K5: Five year totals
B6: Cohort 1
B7: Cohort 2
B8: Cohort 3
B9: Cohort 4
B10: Cohort 5
B11: Cohort 6
B12: Total | F12: =SUM(F6:F11) -> 0 | G12: =SUM(G6:G11) -> 0 | H12: =SUM(H6:H11) -> 0 | I12: =SUM(I6:I11) -> 0 | J12: =SUM(J6:J11) -> 0 | K12: =SUM(F12:J12) -> 0
A14: Expenses
A15: Faculty (9 month) | C15: Salary | D15: % effort | E15: Year 0 | F15: =VLOOKUP($B$4,'Biennum for formula funding'!$A$2:$H$24,2,FALSE) -> FY2027 | G15: =VLOOKUP($B$4+1,'Biennum for formula funding'!$A$2:$H$24,2,FALSE) -> FY2028 | H15: =VLOOKUP($B$4+2,'Biennum for formula funding'!$A$2:$H$24,2,FALSE) -> FY2029 | I15: =VLOOKUP($B$4+3,'Biennum for formula funding'!$A$2:$H$24,2,FALSE) -> FY2030 | J15: =VLOOKUP($B$4+4,'Biennum for formula funding'!$A$2:$H$24,2,FALSE) -> FY2031
B16: Position 1 | F16: =D16*C16 -> 0 | G16: =F16*1.02 -> 0 | H16: =G16*1.02 -> 0 | I16: =H16*1.02 -> 0 | J16: =I16*1.02 -> 0
B17: Position 2 | F17: =D17*C17 -> 0 | G17: =F17*1.02 -> 0 | H17: 0 | I17: 0 | J17: 0
B18: Position 3 | F18: 0 | G18: 0 | H18: 0 | I18: 0 | J18: 0
B19: Position 4 | F19: 0 | G19: 0 | H19: 0 | I19: 0 | J19: 0
B20: Position 5 | F20: 0 | G20: 0 | H20: 0 | I20: 0 | J20: 0
B21: Position 6 | F21: 0 | G21: 0 | H21: 0 | I21: 0 | J21: 0
B22: Position 7 | F22: 0 | G22: 0 | H22: 0 | I22: 0 | J22: 0
B23: Position 8 | F23: 0 | G23: 0 | H23: 0 | I23: 0 | J23: 0
B24: Position 9 | F24: 0 | G24: 0 | H24: 0 | I24: 0 | J24: 0
B25: Position 10 | F25: 0 | G25: 0 | H25: 0 | I25: 0 | J25: 0
B26: Position 11 | F26: 0 | G26: 0 | H26: 0 | I26: 0 | J26: 0
B27: Position 12 | F27: 0 | G27: 0 | H27: 0 | I27: 0 | J27: 0
B28: Position 13 | F28: 0 | G28: 0 | H28: 0 | I28: 0 | J28: 0
B29: Position 14 | F29: 0 | G29: 0 | H29: 0 | I29: 0 | J29: 0
B30: Position 15 | F30: 0 | G30: 0 | H30: 0 | I30: 0 | J30: 0
B31: Adjuncts | E31: 0 | F31: 0 | G31: 0 | H31: 0 | I31: 0 | J31: 0
B32: Subtotal | C32: =SUM(C16:C31) -> 0 | D32: 0 | E32: 0 | F32: 0 | G32: 0 | H32: 0 | I32: 0 | J32: 0 | K32: =SUM(E32:J32) -> 0
A34: Faculty FTE
A36: Staff (12 month)
B37: Position 1 | F37: =D37*C37 -> 0 | G37: =F37*1.02 -> 0 | H37: =G37*1.02 -> 0 | I37: =H37*1.02 -> 0 | J37: =I37*1.02 -> 0 | K37: =SUM(F37:J37) -> 0
B38: Position 2 | F38: =D38*C38 -> 0 | G38: =F38*1.02 -> 0 | H38: 0 | I38: 0 | J38: 0 | K38: =SUM(F38:J38) -> 0
B39: Position 3 | F39: 0 | G39: 0 | H39: 0 | I39: 0 | J39: 0 | K39: 0
B40: Position 4 | F40: 0 | G40: 0 | H40: 0 | I40: 0 | J40: 0 | K40: 0
B41: Position 5 | F41: 0 | G41: 0 | H41: 0 | I41: 0 | J41: 0 | K41: 0
B42: Position 6 | F42: 0 | G42: 0 | H42: 0 | I42: 0 | J42: 0 | K42: 0
B43: Position 7 | F43: 0 | G43: 0 | H43: 0 | I43: 0 | J43: 0 | K43: 0
B44: Position 8 | F44: 0 | G44: 0 | H44: 0 | I44: 0 | J44: 0 | K44: 0
B45: Position 9 | F45: 0 | G45: 0 | H45: 0 | I45: 0 | J45: 0 | K45: 0
B46: Position 10 | F46: 0 | G46: 0 | H46: 0 | I46: 0 | J46: 0 | K46: 0
B47: Position 11 | F47: 0 | G47: 0 | H47: 0 | I47: 0 | J47: 0 | K47: 0
B48: Position 12 | F48: 0 | G48: 0 | H48: 0 | I48: 0 | J48: 0 | K48: 0
B49: Position 13 | F49: 0 | G49: 0 | H49: 0 | I49: 0 | J49: 0 | K49: 0
B50: Position 14 | F50: 0 | G50: 0 | H50: 0 | I50: 0 | J50: 0 | K50: 0
B51: Position 15 | F51: 0 | G51: 0 | H51: 0 | I51: 0 | J51: 0 | K51: 0
B52: Graduate Students | E52: 0 | F52: 0 | G52: 0 | H52: 0 | I52: 0 | J52: 0 | K52: 0
B53: Subtotal | C53: =SUM(C37:C52) -> 0 | D53: 0 | E53: 0 | F53: 0 | G53: 0 | H53: 0 | I53: 0 | J53: 0 | K53: =SUM(F53:J53) -> 0
A55: Staff FTE
B57: Total Salaries | E57: =E53+E32 -> 0 | F57: 0 | G57: 0 | H57: 0 | I57: 0 | J57: 0 | K57: =SUM(E57:J57) -> 0
B58: Benefits @ 20.5% | E58: =E57*0.205 -> 0 | F58: 0 | G58: 0 | H58: 0 | I58: 0 | J58: 0 | K58: =SUM(E58:J58) -> 0
B59: Total Personnel | E59: =E57+E58 -> 0 | F59: 0 | G59: 0 | H59: 0 | I59: 0 | J59: 0 | K59: =SUM(E59:J59) -> 0
A61: Non-Personnel
B62: Marketing/Recruiting | G62: =F62 -> 0 | H62: 0 | I62: 0 | J62: 0 | K62: =SUM(F62:J62) -> 0
B63: Scholarships & Tuition Assistantships | G63: 0 | H63: 0 | I63: 0 | J63: 0 | K63: =SUM(F63:J63) -> 0
B64: Annual maintenance & operations | G64: 0 | H64: 0 | I64: 0 | J64: 0 | K64: 0
B65: Library and Information Technology | G65: 0 | H65: 0 | I65: 0 | J65: 0 | K65: 0
B66: Accreditation | G66: 0 | H66: 0 | I66: 0 | J66: 0 | K66: 0
B67: Facilities | G67: 0 | H67: 0 | I67: 0 | J67: 0 | K67: 0
B68: Laboratory and other equipment | G68: 0 | H68: 0 | I68: 0 | J68: 0 | K68: 0
B69: Other | E69: 0 | F69: 0 | G69: 0 | H69: 0 | I69: 0 | J69: 0 | K69: 0
B70: Total Non-Personnel | E70: =SUM(E62:E69) -> 0 | F70: 0 | G70: 0 | H70: 0 | I70: 0 | J70: 0 | K70: =SUM(E70:J70) -> 0
A71: Allocated to university operations | C71: 0.1 | F71: =F80*Allocated_to_university_operations -> 0 | G71: =G80*Allocated_to_university_operations -> 0 | H71: =H80*Allocated_to_university_operations -> 0 | I71: =I80*Allocated_to_university_operations -> 0 | J71: =J80*Allocated_to_university_operations -> 0 | K71: =SUM(F71:J71) -> 0
A72: Total Annual Expense | E72: =E59+E70+E71 -> 0 | F72: 0 | G72: 0 | H72: 0 | I72: 0 | J72: 0 | K72: =SUM(E72:J72) -> 0
A74: Revenue
B75: Formula Funding Generated | F75: =VLOOKUP(F4,'Revenue Basis'!$G$34:$I$42,3,TRUE)*Formula__weight_X_rate -> 0 | G75: =VLOOKUP(G4,'Revenue Basis'!$G$34:$I$42,3,TRUE)*Formula__weight_X_rate -> 0 | H75: =VLOOKUP(H4,'Revenue Basis'!$G$34:$I$42,3,TRUE)*Formula__weight_X_rate -> 0 | I75: =VLOOKUP(I4,'Revenue Basis'!$G$34:$I$42,3,TRUE)*Formula__weight_X_rate -> 0 | J75: =VLOOKUP(J4,'Revenue Basis'!$G$34:$I$42,3,TRUE)*Formula__weight_X_rate -> 0 | K75: =SUM(F75:J75) -> 0 | L75: enrollment per bienium * formula weight
B76: Statutory Tuition Applied to Formula | F76: =-VLOOKUP(F4,'Revenue Basis'!$G$34:$I$42,3,TRUE)*VLOOKUP('Revenue Basis'!$C$7,'Tuition Groups Table'!$D$4:$J$75,5,FALSE) -> 0 | G76: =-VLOOKUP(G4,'Revenue Basis'!$G$34:$I$42,3,TRUE)*VLOOKUP('Revenue Basis'!$C$7,'Tuition Groups Table'!$D$4:$J$75,5,FALSE) -> 0 | H76: =-VLOOKUP(H4,'Revenue Basis'!$G$34:$I$42,3,TRUE)*VLOOKUP('Revenue Basis'!$C$7,'Tuition Groups Table'!$D$4:$J$75,5,FALSE) -> 0 | I76: =-VLOOKUP(I4,'Revenue Basis'!$G$34:$I$42,3,TRUE)*VLOOKUP('Revenue Basis'!$C$7,'Tuition Groups Table'!$D$4:$J$75,5,FALSE) -> 0 | J76: =-VLOOKUP(J4,'Revenue Basis'!$G$34:$I$42,3,TRUE)*VLOOKUP('Revenue Basis'!$C$7,'Tuition Groups Table'!$D$4:$J$75,5,FALSE) -> 0 | L76: 35% * enrollment per year * annual tuition?
B77: Subtotal: State General Revenue | F77: =SUM(F75:F76) -> 0 | G77: =SUM(G75:G76) -> 0 | H77: =SUM(H75:H76) -> 0 | I77: =SUM(I75:I76) -> 0 | J77: =SUM(J75:J76) -> 0 | K77: =SUM(F77:J77) -> 0 | L77: Formula funding - local tuition applied to formula
B78: UH Tuition and Fees | F78: =SUM('Revenue Basis'!$G$20)*Year1_Enrollment -> 0 | G78: =SUM('Revenue Basis'!$G$20)*Year2_Enrollment -> 0 | H78: =SUM('Revenue Basis'!$G$20)*Year3_Enrollment -> 0 | I78: =SUM('Revenue Basis'!$G$20)*Year4_Enrollment -> 0 | J78: =SUM('Revenue Basis'!$G$20)*Year5_Enrollment -> 0 | K78: =SUM(F78:J78) -> 0 | L78: enrollment per year * annual tuition?
B79: Allocated to set aside per student | F79: =-Year1_Enrollment*SUM('Revenue Basis'!C11:C13)*Allocated_to_set_aside_per_student -> 0 | G79: =-Year2_Enrollment*SUM('Revenue Basis'!C11:C13)*Allocated_to_set_aside_per_student -> 0 | H79: =-Year3_Enrollment*SUM('Revenue Basis'!C11:C13)*Allocated_to_set_aside_per_student -> 0 | I79: =-Year4_Enrollment*SUM('Revenue Basis'!C11:C13)*Allocated_to_set_aside_per_student -> 0 | J79: =-Year5_Enrollment*SUM('Revenue Basis'!C11:C13)*Allocated_to_set_aside_per_student -> 0 | K79: =SUM(F79:J79) -> 0 | L79: enrollment per year * allocated to set aside per student
B80: Total Revenue from Enrollment | F80: =F78+F79+F77 -> 0 | G80: =G78+G79+G77 -> 0 | H80: =H78+H79+H77 -> 0 | I80: =I78+I79+I77 -> 0 | J80: =J78+J79+J77 -> 0 | K80: =SUM(F80:J80) -> 0 | L80: state general revenue + UH Tuition and Fees - allocated
B81: Philanthropy and other External Revenue | F81: 0 | G81: 0 | H81: 0 | I81: 0 | J81: 0
B82: Net Revenue | F82: =SUM(F80:F81) -> 0 | G82: =SUM(G80:G81) -> 0 | H82: =SUM(H80:H81) -> 0 | I82: =SUM(I80:I81) -> 0 | J82: =SUM(J80:J81) -> 0 | K82: =SUM(F82:J82) -> 0
B85: Net Annual Gain/(Loss) | E85: =E82-E72 -> 0 | F85: 0 | G85: 0 | H85: 0 | I85: 0 | J85: 0 | K85: =SUM(E85:J85) -> 0
B87: Cumulative Gain/(Loss) | E87: =E85 -> 0 | F87: =E87+F85 -> 0 | G87: =F87+G85 -> 0 | H87: =G87+H85 -> 0 | I87: =H87+I85 -> 0 | J87: =I87+J85 -> 0
A89: College Business Administrator Signature: | H89: Date:
A90: Daniel Chang, Program Director, Office of the Provost Signature: | H90: Date:
A91: Vivianne Do, Executive Director, Office of the Provost Signature: | H91: Date:

Sheet Revenue Basis
A1: ='Pro Forma'!A1 -> PRO FORMA FOR BS in
A3: Revenue by Source
A5: Assumptions
B6: Resident Tuition used as basis for projections.
B7: College and Career Path (select from the drop down box in cell C7) | C7: 57
B8: Label from Instruction and Operation Formula Tab (select the drop down box in cell C8) | C8: 51
B9: Instructional and Operations Formula weighting | C9: =INDEX('Instruction Formula Weights'!A2:B72,C8,2) -> 1.34
B10: Formula rate per weighted SCH for 2026-27 biennium | C10: 60.67
B11: SCH fall Semester
B12: SCH spring semester
B13: SCH summer semester
B14: Hours per course
B15: Allocated to set aside per SCH | C15: =INDEX('Tuition Groups Table'!E4:S81,C7,15) -> 39.6287
A17: Proposed Consolidated Tuition & Fees | C17: Rate | D17: Fall | E17: Spring | F17: Summer | G17: Annual Total
B18: =INDEX('Tuition Groups Table'!E4:G81,C7,2) -> COA 1 - Prof Grad | C18: =INDEX('Tuition Groups Table'!E4:S81,C7,11) -> 421.76 | D18: =Graduate_CTF*SCH_fall_Semester -> 0 | E18: =Graduate_CTF*SCH_spring_semester -> 0 | F18: =Graduate_CTF*SCH_summer_semester -> 0 | G18: =SUM(D18:F18) -> 0
B19: Certificate & Executive Fee | D19: =Certificate___Executive_Fee*SCH_fall_Semester -> 0 | E19: =Certificate___Executive_Fee*SCH_spring_semester -> 0 | F19: =Certificate___Executive_Fee*SCH_summer_semester -> 0 | G19: =SUM(D19:F19) -> 0
B20: Tuition & Fees for Academic Semester | D20: =SUM(D18:D19) -> 0 | E20: =SUM(E18:E19) -> 0 | F20: =SUM(F18:F19) -> 0 | G20: =SUM(G18:G19) -> 0
A23: Instructional and Operations Formula Revenue
B24: Formula (weight X rate) | C24: =C9*C10 -> 81.2978
B26: Year | C26: Semester listing | D26: Biennum Period | E26: Fall | F26: Spring | G26: Summer | H26: Total SCH | I26: SCH for Biennum
B27: =VLOOKUP('Pro Forma'!$B$4,'Biennum for formula funding'!$A$2:$H$31,2,FALSE) -> FY2027 | C27: =VLOOKUP(B27,'Biennum for formula funding'!B2:I16,8,FALSE) -> Fall26, Spr27, Sum27 | D27: =VLOOKUP(B27,'Biennum for formula funding'!$B$2:$J$24,9,FALSE) -> 2028-29 Biennum | E27: =Year1_Enrollment*SCH_fall_Semester -> 0 | F27: =Year1_Enrollment*SCH_spring_semester -> 0 | G27: =Year1_Enrollment*SCH_summer_semester -> 0 | H27: =SUM(E27:G27) -> 0 | I27: =SUMPRODUCT(E27:G27,J27:L27) -> 0 | J27: =VLOOKUP($B27,'Biennum for formula funding'!$B$2:$J$31,5,FALSE) -> 1 | K27: =VLOOKUP($B27,'Biennum for formula funding'!$B$2:$J$31,6,FALSE) -> 1 | L27: =VLOOKUP($B27,'Biennum for formula funding'!$B$2:$J$31,7,FALSE) -> 0
B28: =VLOOKUP('Pro Forma'!$B$4+1,'Biennum for formula funding'!$A$2:$H$31,2,FALSE) -> FY2028 | C28: =VLOOKUP(B28,'Biennum for formula funding'!B3:I24,8,FALSE) -> Fall27, Spr28, Sum28 | D28: =VLOOKUP(B28,'Biennum for formula funding'!$B$2:$J$24,9,FALSE) -> 2030-31 Biennum | E28: =Year2_Enrollment*SCH_fall_Semester -> 0 | F28: =Year2_Enrollment*SCH_spring_semester -> 0 | G28: =Year2_Enrollment*SCH_summer_semester -> 0 | H28: =SUM(E28:G28) -> 0 | I28: =SUMPRODUCT(E28:G28,J28:L28) -> 0 | J28: =VLOOKUP($B28,'Biennum for formula funding'!$B$2:$J$31,5,FALSE) -> 0 | K28: =VLOOKUP($B28,'Biennum for formula funding'!$B$2:$J$31,6,FALSE) -> 0 | L28: =VLOOKUP($B28,'Biennum for formula funding'!$B$2:$J$31,7,FALSE) -> 1
B29: =VLOOKUP('Pro Forma'!$B$4+2,'Biennum for formula funding'!$A$2:$H$31,2,FALSE) -> FY2029 | C29: =VLOOKUP(B29,'Biennum for formula funding'!B4:I34,8,FALSE) -> Fall28, Spr29, Sum29 | D29: =VLOOKUP(B29,'Biennum for formula funding'!$B$2:$J$24,9,FALSE) -> 2030-31 Biennum | E29: =Year3_Enrollment*SCH_fall_Semester -> 0 | F29: =Year3_Enrollment*SCH_spring_semester -> 0 | G29: =Year3_Enrollment*SCH_summer_semester -> 0 | H29: =SUM(E29:G29) -> 0 | I29: =SUMPRODUCT(E29:G29,J29:L29) -> 0 | J29: =VLOOKUP($B29,'Biennum for formula funding'!$B$2:$J$31,5,FALSE) -> 1 | K29: =VLOOKUP($B29,'Biennum for formula funding'!$B$2:$J$31,6,FALSE) -> 1 | L29: =VLOOKUP($B29,'Biennum for formula funding'!$B$2:$J$31,7,FALSE) -> 0
B30: =VLOOKUP('Pro Forma'!$B$4+3,'Biennum for formula funding'!$A$2:$H$31,2,FALSE) -> FY2030 | C30: =VLOOKUP(B30,'Biennum for formula funding'!B5:I35,8,FALSE) -> Fall29, Spr30, Sum30 | D30: =VLOOKUP(B30,'Biennum for formula funding'!$B$2:$J$24,9,FALSE) -> 2032-33 Biennum | E30: =Year4_Enrollment*SCH_fall_Semester -> 0 | F30: =Year4_Enrollment*SCH_spring_semester -> 0 | G30: =Year4_Enrollment*SCH_summer_semester -> 0 | H30: =SUM(E30:G30) -> 0 | I30: =SUMPRODUCT(E30:G30,J30:L30) -> 0 | J30: =VLOOKUP($B30,'Biennum for formula funding'!$B$2:$J$31,5,FALSE) -> 0 | K30: =VLOOKUP($B30,'Biennum for formula funding'!$B$2:$J$31,6,FALSE) -> 0 | L30: =VLOOKUP($B30,'Biennum for formula funding'!$B$2:$J$31,7,FALSE) -> 1
B31: =VLOOKUP('Pro Forma'!$B$4+4,'Biennum for formula funding'!$A$2:$H$31,2,FALSE) -> FY2031 | C31: =VLOOKUP(B31,'Biennum for formula funding'!B6:I58,8,FALSE) -> Fall30, Spr31, Sum31 | D31: =VLOOKUP(B31,'Biennum for formula funding'!$B$2:$J$24,9,FALSE) -> 2032-33 Biennum | E31: =Year5_Enrollment*SCH_fall_Semester -> 0 | F31: =Year5_Enrollment*SCH_spring_semester -> 0 | G31: =Year5_Enrollment*SCH_summer_semester -> 0 | H31: =SUM(E31:G31) -> 0 | I31: =SUMPRODUCT(E31:G31,J31:L31) -> 0 | J31: =VLOOKUP($B31,'Biennum for formula funding'!$B$2:$J$31,5,FALSE) -> 1 | K31: =VLOOKUP($B31,'Biennum for formula funding'!$B$2:$J$31,6,FALSE) -> 1 | L31: =VLOOKUP($B31,'Biennum for formula funding'!$B$2:$J$31,7,FALSE) -> 0
G34: FY2026 | H34: =VLOOKUP(G34,'Biennum for formula funding'!B:L,11,FALSE) -> 2026-27 Biennum | I34: =SUMIF($D$27:$I$31,H34,$I$27:$I$31) -> 0
G35: FY2028 | H35: =VLOOKUP(G35,'Biennum for formula funding'!B:L,11,FALSE) -> 2028-29 Biennum | I35: =SUMIF($D$27:$I$31,H35,$I$27:$I$31) -> 0
G36: FY2030 | H36: =VLOOKUP(G36,'Biennum for formula funding'!B:L,11,FALSE) -> 2030-31 Biennum | I36: =SUMIF($D$27:$I$31,H36,$I$27:$I$31) -> 0
G37: FY2032 | H37: =VLOOKUP(G37,'Biennum for formula funding'!B:L,11,FALSE) -> 2032-33 Biennum | I37: =SUMIF($D$27:$I$31,H37,$I$27:$I$31) -> 0
G38: FY2034 | H38: =VLOOKUP(G38,'Biennum for formula funding'!B:L,11,FALSE) -> 2034-35 Biennum | I38: 0
G39: FY2036 | H39: =VLOOKUP(G39,'Biennum for formula funding'!B:L,11,FALSE) -> 2036-37 Biennum | I39: 0
G40: FY2038 | H40: =VLOOKUP(G40,'Biennum for formula funding'!B:L,11,FALSE) -> 2038-39 Biennum | I40: 0
G41: FY2040 | H41: =VLOOKUP(G41,'Biennum for formula funding'!B:L,11,FALSE) -> 2040-41 Biennum | I41: 0
G42: FY2041 | H42: =VLOOKUP(G42,'Biennum for formula funding'!B:L,11,FALSE) -> 2040-41 Biennum | I42: 0

Sheet Biennum for formula funding (hidden)
B1: Fiscal year | C1: Fall | D1: Spring | E1: Summer | F1: Biennium Fall | G1: Biennium Spring | H1: Biennium Summer | I1: Semester listing | J1: Biennum Period | K1: Funding Years | L1: Biennum for Fiscal Year
A2: 1 | B2: FY2014 | C2: Fall13 | D2: Spr14 | E2: Sum14 | F2: 0 | G2: 0 | H2: 1 | I2: Fall13, Spr14, Sum14 | J2: 2016-17 Biennum | K2: FY2016 | L2: 2014-15 Biennum | M2: =VLOOKUP('Biennum for formula funding'!J2,'Revenue Basis'!$H$35:$I$42,2,FALSE) ->  | S2: 2020-21 Biennum
A3: 2 | B3: FY2015 | C3: Fall14 | D3: Spr15 | E3: Sum15 | F3: 1 | G3: 1 | H3: 0 | I3: Fall14, Spr15, Sum15 | J3: 2016-17 Biennum | K3: FY2017 | L3: 2014-15 Biennum | M3: =VLOOKUP('Biennum for formula funding'!J3,'Revenue Basis'!$H$35:$I$42,2,FALSE) ->  | S3: 2022-23 Biennum
A4: 3 | B4: FY2016 | C4: Fall15 | D4: Spr16 | E4: Sum16 | F4: 0 | G4: 0 | H4: 1 | I4: Fall15, Spr16, Sum16 | J4: 2018-19 Biennum | K4: FY2018 | L4: 2016-17 Biennum | M4: =VLOOKUP('Biennum for formula funding'!J4,'Revenue Basis'!$H$35:$I$42,2,FALSE) ->  | S4: 2024-25 Biennum
A5: 4 | B5: FY2017 | C5: Fall16 | D5: Spr17 | E5: Sum17 | F5: 1 | G5: 1 | H5: 0 | I5: Fall16, Spr17, Sum17 | J5: 2018-19 Biennum | K5: FY2019 | L5: 2016-17 Biennum | M5: =VLOOKUP('Biennum for formula funding'!J5,'Revenue Basis'!$H$35:$I$42,2,FALSE) ->  | S5: 2026-27 Biennum
A6: 5 | B6: FY2018 | C6: Fall17 | D6: Spr18 | E6: Sum18 | F6: 0 | G6: 0 | H6: 1 | I6: Fall17, Spr18, Sum18 | J6: 2020-21 Biennum | K6: FY2020 | L6: 2018-19 Biennum | M6: =VLOOKUP('Biennum for formula funding'!J6,'Revenue Basis'!$H$35:$I$42,2,FALSE) ->  | S6: 2028-29 Biennum
A7: 6 | B7: FY2019 | C7: Fall18 | D7: Spr19 | E7: Sum19 | F7: 1 | G7: 1 | H7: 0 | I7: Fall18, Spr19, Sum19 | J7: 2020-21 Biennum | K7: FY2021 | L7: 2018-19 Biennum | M7: =VLOOKUP('Biennum for formula funding'!J7,'Revenue Basis'!$H$35:$I$42,2,FALSE) ->  | S7: 2030-31 Biennum
A8: 7 | B8: FY2020 | C8: Fall19 | D8: Spr20 | E8: Sum20 | F8: 0 | G8: 0 | H8: 1 | I8: Fall19, Spr20, Sum20 | J8: 2022-23 Biennum | K8: FY2022 | L8: 2020-21 Biennum | M8: =VLOOKUP('Biennum for formula funding'!J8,'Revenue Basis'!$H$35:$I$42,2,FALSE) ->  | S8: 2032-33 Biennum
A9: 8 | B9: FY2021 | C9: Fall20 | D9: Spr21 | E9: Sum21 | F9: 1 | G9: 1 | H9: 0 | I9: Fall20, Spr21, Sum21 | J9: 2022-23 Biennum | K9: FY2023 | L9: 2020-21 Biennum | M9: =VLOOKUP('Biennum for formula funding'!J9,'Revenue Basis'!$H$35:$I$42,2,FALSE) ->  | S9: 2034-35 Biennum
A10: 9 | B10: FY2022 | C10: Fall21 | D10: Spr22 | E10: Sum22 | F10: 0 | G10: 0 | H10: 1 | I10: Fall21, Spr22, Sum22 | J10: 2024-25 Biennum | K10: FY2024 | L10: 2022-23 Biennum | M10: =VLOOKUP('Biennum for formula funding'!J10,'Revenue Basis'!$H$35:$I$42,2,FALSE) ->  | S10: 2036-37 Biennum
A11: 10 | B11: FY2023 | C11: Fall22 | D11: Spr23 | E11: Sum23 | F11: 1 | G11: 1 | H11: 0 | I11: Fall22, Spr23, Sum23 | J11: 2024-25 Biennum | K11: FY2025 | L11: 2022-23 Biennum | M11: =VLOOKUP('Biennum for formula funding'!J11,'Revenue Basis'!$H$35:$I$42,2,FALSE) -> 
A12: 11 | B12: FY2024 | C12: Fall23 | D12: Spr24 | E12: Sum24 | F12: 0 | G12: 0 | H12: 1 | I12: Fall23, Spr24, Sum24 | J12: 2026-27 Biennum | K12: FY2026 | L12: 2024-25 Biennum | M12: =VLOOKUP('Biennum for formula funding'!J12,'Revenue Basis'!$H$35:$I$42,2,FALSE) -> 
A13: 12 | B13: FY2025 | C13: Fall24 | D13: Spr25 | E13: Sum25 | F13: 1 | G13: 1 | H13: 0 | I13: Fall24, Spr25, Sum25 | J13: 2026-27 Biennum | K13: FY2027 | L13: 2024-25 Biennum | M13: =VLOOKUP('Biennum for formula funding'!J13,'Revenue Basis'!$H$35:$I$42,2,FALSE) -> 
A14: 13 | B14: FY2026 | C14: Fall25 | D14: Spr26 | E14: Sum26 | F14: 0 | G14: 0 | H14: 1 | I14: Fall25, Spr26, Sum26 | J14: 2028-29 Biennum | K14: FY2028 | L14: 2026-27 Biennum | M14: =VLOOKUP('Biennum for formula funding'!J14,'Revenue Basis'!$H$35:$I$42,2,FALSE) -> 0
A15: 14 | B15: FY2027 | C15: Fall26 | D15: Spr27 | E15: Sum27 | F15: 1 | G15: 1 | H15: 0 | I15: Fall26, Spr27, Sum27 | J15: 2028-29 Biennum | K15: FY2029 | L15: 2026-27 Biennum | M15: =VLOOKUP('Biennum for formula funding'!J15,'Revenue Basis'!$H$35:$I$42,2,FALSE) -> 0
A16: 15 | B16: FY2028 | C16: Fall27 | D16: Spr28 | E16: Sum28 | F16: 0 | G16: 0 | H16: 1 | I16: Fall27, Spr28, Sum28 | J16: 2030-31 Biennum | K16: FY2030 | L16: 2028-29 Biennum | M16: =VLOOKUP('Biennum for formula funding'!J16,'Revenue Basis'!$H$35:$I$42,2,FALSE) -> 0
A17: 16 | B17: FY2029 | C17: Fall28 | D17: Spr29 | E17: Sum29 | F17: 1 | G17: 1 | H17: 0 | I17: Fall28, Spr29, Sum29 | J17: 2030-31 Biennum | K17: FY2031 | L17: 2028-29 Biennum | M17: =VLOOKUP('Biennum for formula funding'!J17,'Revenue Basis'!$H$35:$I$42,2,FALSE) -> 0
A18: 17 | B18: FY2030 | C18: Fall29 | D18: Spr30 | E18: Sum30 | F18: 0 | G18: 0 | H18: 1 | I18: Fall29, Spr30, Sum30 | J18: 2032-33 Biennum | K18: FY2032 | L18: 2030-31 Biennum | M18: =VLOOKUP('Biennum for formula funding'!J18,'Revenue Basis'!$H$35:$I$42,2,FALSE) -> 0
A19: 18 | B19: FY2031 | C19: Fall30 | D19: Spr31 | E19: Sum31 | F19: 1 | G19: 1 | H19: 0 | I19: Fall30, Spr31, Sum31 | J19: 2032-33 Biennum | K19: FY2033 | L19: 2030-31 Biennum | M19: =VLOOKUP('Biennum for formula funding'!J19,'Revenue Basis'!$H$35:$I$42,2,FALSE) -> 0
A20: 19 | B20: FY2032 | C20: Fall31 | D20: Spr32 | E20: Sum32 | F20: 0 | G20: 0 | H20: 1 | I20: Fall31, Spr32, Sum32 | J20: 2034-35 Biennum | K20: FY2034 | L20: 2032-33 Biennum | M20: =VLOOKUP('Biennum for formula funding'!J20,'Revenue Basis'!$H$35:$I$42,2,FALSE) -> 0
A21: 20 | B21: FY2033 | C21: Fall32 | D21: Spr33 | E21: Sum33 | F21: 1 | G21: 1 | H21: 0 | I21: Fall32, Spr33, Sum33 | J21: 2034-35 Biennum | K21: FY2035 | L21: 2032-33 Biennum | M21: =VLOOKUP('Biennum for formula funding'!J21,'Revenue Basis'!$H$35:$I$42,2,FALSE) -> 0
A22: 21 | B22: FY2034 | C22: Fall33 | D22: Spr34 | E22: Sum34 | F22: 0 | G22: 0 | H22: 1 | I22: Fall33, Spr34, Sum34 | J22: 2036-37 Biennum | K22: FY2036 | L22: 2034-35 Biennum | M22: =VLOOKUP('Biennum for formula funding'!J22,'Revenue Basis'!$H$35:$I$42,2,FALSE) -> 0
A23: 22 | B23: FY2035 | C23: Fall34 | D23: Spr35 | E23: Sum35 | F23: 1 | G23: 1 | H23: 0 | I23: Fall34, Spr35, Sum35 | J23: 2036-37 Biennum | K23: FY2037 | L23: 2034-35 Biennum | M23: =VLOOKUP('Biennum for formula funding'!J23,'Revenue Basis'!$H$35:$I$42,2,FALSE) -> 0
A24: 23 | B24: FY2036 | C24: Fall35 | D24: Spr36 | E24: Sum36 | F24: 0 | G24: 0 | H24: 1 | I24: Fall35, Spr36, Sum36 | J24: 2038-39 Biennum | K24: FY2038 | L24: 2036-37 Biennum | M24: =VLOOKUP('Biennum for formula funding'!J24,'Revenue Basis'!$H$35:$I$42,2,FALSE) -> 0
A25: 24 | B25: FY2037 | C25: Fall36 | D25: Spr37 | E25: Sum37 | F25: 1 | G25: 1 | H25: 0 | I25: Fall36, Spr37, Sum37 | J25: 2038-39 Biennum | K25: FY2039 | L25: 2036-37 Biennum | M25: =VLOOKUP('Biennum for formula funding'!J25,'Revenue Basis'!$H$35:$I$42,2,FALSE) -> 0
A26: 25 | B26: FY2038 | C26: Fall37 | D26: Spr38 | E26: Sum38 | F26: 0 | G26: 0 | H26: 1 | I26: Fall37, Spr38, Sum38 | J26: 2040-41 Biennum | K26: FY2040 | L26: 2038-39 Biennum | M26: =VLOOKUP('Biennum for formula funding'!J26,'Revenue Basis'!$H$35:$I$42,2,FALSE) -> 0
A27: 26 | B27: FY2039 | C27: Fall38 | D27: Spr39 | E27: Sum39 | F27: 1 | G27: 1 | H27: 0 | I27: Fall38, Spr39, Sum39 | J27: 2040-41 Biennum | K27: FY2041 | L27: 2038-39 Biennum | M27: =VLOOKUP('Biennum for formula funding'!J27,'Revenue Basis'!$H$35:$I$42,2,FALSE) -> 0
A28: 27 | B28: FY2040 | C28: Fall39 | D28: Spr40 | E28: Sum40 | F28: 0 | G28: 0 | H28: 1 | I28: Fall39, Spr40, Sum40 | J28: 2042-43 Biennum | K28: FY2042 | L28: 2040-41 Biennum | M28: =VLOOKUP('Biennum for formula funding'!J28,'Revenue Basis'!$H$35:$I$42,2,FALSE) -> 
A29: 28 | B29: FY2041 | C29: Fall40 | D29: Spr41 | E29: Sum41 | F29: 1 | G29: 1 | H29: 0 | I29: Fall40, Spr41, Sum41 | J29: 2042-43 Biennum | K29: FY2043 | L29: 2040-41 Biennum | M29: =VLOOKUP('Biennum for formula funding'!J29,'Revenue Basis'!$H$35:$I$42,2,FALSE) -> 
A30: 29 | B30: FY2042 | C30: Fall41 | D30: Spr42 | E30: Sum42 | F30: 0 | G30: 0 | H30: 1 | I30: Fall41, Spr42, Sum42 | J30: 2044-45 Biennum | K30: FY2044 | L30: 2042-43 Biennum | M30: =VLOOKUP('Biennum for formula funding'!J30,'Revenue Basis'!$H$35:$I$42,2,FALSE) -> 
A31: 30 | B31: FY2043 | C31: Fall42 | D31: Spr43 | E31: Sum43 | F31: 1 | G31: 1 | H31: 0 | I31: Fall42, Spr43, Sum43 | J31: 2044-45 Biennum | K31: FY2045 | L31: 2042-43 Biennum | M31: =VLOOKUP('Biennum for formula funding'!J31,'Revenue Basis'!$H$35:$I$42,2,FALSE) -> 
A32: 31 | B32: FY2044
A33: 32 | B33: FY2045
A34: 33 | B34: FY2046
A35: 34 | B35: FY2047
A36: 35 | B36: FY2048
A37: 36 | B37: FY2049
A38: 37 | B38: FY2050
A39: 38 | B39: FY2051
A40: 39 | B40: FY2052
A41: 40 | B41: FY2053
A42: 41 | B42: FY2054
A43: 42 | B43: FY2055
A44: 43 | B44: FY2056
A45: 44 | B45: FY2057
A46: 45 | B46: FY2058
A47: 46 | B47: FY2059
A48: 47 | B48: FY2060
A49: 48 | B49: FY2061
A50: 49 | B50: FY2062
A51: 50 | B51: FY2063
A52: 51 | B52: FY2064
A53: 52 | B53: FY2065
A54: 53 | B54: FY2066
A55: 54 | B55: FY2067
A56: 55 | B56: FY2068
A57: 56 | B57: FY2069
H59: 2014 is based upon SCH generageed during
H60: Biennum year | I60: Affects funding for
H61: 14-15 | I61: 16-17
H62: 16-17 | I62: 18-19
H63: 18-19 | I63: 20-21
H64: 20-21 | I64: 22-23
H65: 22-23 | I65: 24-25
H66: 24-25 | I66: 26-27
H67: 26-27 | I67: 28-29
H68: 28-29 | I68: 30-31
H69: 30-31 | I69: 32-33
H70: 32-33 | I70: 34-35
H71: 34-35 | I71: 36-37
H72: 36-37 | I72: 38-39
H73: 38-39 | I73: 40-41
H74: 40-41 | I74: 42-43
H75: 42-43 | I75: 44-45
H76: 44-45 | I76: 46-47
H77: 46-47 | I77: 48-49
H78: 48-49 | I78: 50-51
H79: 50-51 | I79: 52-53
H80: 52-53 | I80: 54-55
H81: 54-55 | I81: 56-57
H82: 56-57 | I82: 58-59
H83: 58-59 | I83: 60-61

Sheet THECB tables
A1: THECB tables
B2: DRAFT
B5: THECB recognizes that additional costs such as housing, childcare, etc., are needed for many students. However, because these costs are highly variable by student, they are not included in the costs and funding tables.
A7: Enrollment, Costs, and Support
B8: Table xx: Estimated Annual Required Per Student Costs | E8: Table xx: Estimated Average Total Student Funding
B9: Please provide the estimated average annual required per student costs for students in the degree program. Averages from similar programs or disciplines, or even institutional averages, may be used if no other information is available. | E9: Please provide the estimated average annual total student funding available to students in the degree program.
B10: Cost Type | C10: Dollar Amount | E10: Funding Type | F10: Year 1 | G10: Year 2 | H10: Year 3 | I10: Year 4 | J10: Year 5 | K10: 5-Year Total
B11: Per Student Annual Costs | E11: Scholarships | K11: =SUM(F11:J11) -> 0
B12: Resident Tuition | E12: Teaching Assistantships | K12: =SUM(F12:J12) -> 0
B13: Non-Resident Tuition | E13: Research Assistantships | K13: =SUM(F13:J13) -> 0
B14: Required Fees | E14: Other funding [please specify] | K14: =SUM(F14:J14) -> 0
B15: Health Insurance Fee | E15: Total Funding | F15: =SUM(F11:F13) -> 0 | G15: =SUM(G11:G13) -> 0 | H15: =SUM(H11:H13) -> 0 | I15: =SUM(I11:I13) -> 0 | J15: =SUM(J11:J13) -> 0 | K15: =SUM(K11:K14) -> 0
B16: Course Materials
B17: Other [please specify]
B18: Estimated Time to Degree (in years, assuming full-time enrollment)
B20: Per Student One-Time Required Fees (if applicable) [e.g., clinical fieldwork semester fees]
B21: Estimated Post-Graduation Licensure Fees (if applicable)
A24: Projected Enrollments
B25: DRAFT
B28: Table xx: Projected Five-Year Enrollments
B29: Provde projected 5-year enrollments in the table below. For programs with intentional plans to market the program nationally or internationally, please provide estimates of out-of-state and out-of-country students. These estimates should be aligned with projected tuition. If no out-of-state or out-of-country students are projected, please leave the row blank. For doctoral and professional programs, complete Table xx below in addition to this table.
B30: Enromment | C30: Year 1 | D30: Year 2 | E30: Year 3 | F30: Year 4 | G30: Year 5
B31: Full-Time
B32: In-state
B33: Out-of-state
B34: Out-of-country
B35: Part-Time
B36: In-state
B37: Out-of-state
B38: Out-of-country
B39: Total New Students | C39: =SUM(C32:C38) -> 0 | D39: =SUM(D32:D38) -> 0 | E39: =SUM(E32:E38) -> 0 | F39: =SUM(F32:F38) -> 0 | G39: =SUM(G32:G38) -> 0
B40: Attrition | C40: 0
B41: Graduates
B42: FTSE
B43: Cumulative Headcount | C43: =C39-C40-C41 -> 0 | D43: =D39-D40-D41 -> 0 | E43: =E39-E40-E41 -> 0 | F43: =F39-F40-F41 -> 0 | G43: =G39-G40-G41 -> 0
B46: For doctoral & professional only
B47: Table xx: Projected Five-Year Enrollments by Gender & Race/Ethnicity
B48: Please provide projected enrollments by the IPEDS reporting cateogires below.
B49: Cateogry | C49: Year 1 | D49: Year 2 | E49: Year 3 | F49: Year 4 | G49: Year 5
B50: African American
B51: Hispanic
B52: International
B53: Other
B54: White
A56: Total Costs & Funding
B57: DRAFT
B60: Table xx: Projected Total Costs & Funding
B61: Please provide the applicable costs and funding items below.
B62: Estimated Costs | C62: Year 1 | D62: Year 2 | E62: Year 3 | F62: Year 4 | G62: Year 5 | H62: 5-Year Total
B63: Faculty Salaries & Benefits | H63: =SUM(C63:G63) -> 0
B64: Staff Salaries & Benefits | H64: =SUM(C64:G64) -> 0
B65: Teaching Assistantships | H65: 0
B66: Research Assistantships | H66: 0
B67: Other Student Scholarships/Funding | H67: 0
B68: Library & Instructional Technology | H68: 0
B69: Facilities & Captial Investments | H69: 0
B70: Miscellaneous (supplies/materials/program administration) | H70: 0
B71: Other [please specify] | H71: 0
B72: Total Costs | C72: =SUM(C63:C71) -> 0 | D72: =SUM(D63:D71) -> 0 | E72: =SUM(E63:E71) -> 0 | F72: =SUM(F63:F71) -> 0 | G72: =SUM(G63:G71) -> 0 | H72: 0
B73: Estimated Funding | C73: Year 1 | D73: Year 2 | E73: Year 3 | F73: Year 4 | G73: Year 5 | H73: 5-Year Total
B74: Formula Funding | E74: ='Pro Forma'!H77 -> 0 | F74: ='Pro Forma'!I77 -> 0 | G74: ='Pro Forma'!J77 -> 0 | H74: =SUM(C74:G74) -> 0
B75: Other Non-Formula Tuition Funding | C75: ='Pro Forma'!F80 -> 0 | D75: ='Pro Forma'!G80 -> 0 | E75: ='Pro Forma'!H80 -> 0 | F75: ='Pro Forma'!I80 -> 0 | G75: ='Pro Forma'!J80 -> 0 | H75: =SUM(C75:G75) -> 0
B76: Federal Grant Funding (in hand only) | H76: 0
B77: Other Grant Funding (in hand only) | H77: 0
B78: Anticipated Grant Funding * | H78: 0
B79: Required Fees Collected | C79: =$C$14*C43 -> 0 | D79: =$C$14*D43 -> 0 | E79: =$C$14*E43 -> 0 | F79: =$C$14*F43 -> 0 | G79: =$C$14*G43 -> 0 | H79: 0
B80: Other [please specify] | H80: 0
B81: Total Funding | C81: =SUM(C74:C80) -> 0 | D81: =SUM(D74:D80) -> 0 | E81: =SUM(E74:E80) -> 0 | F81: =SUM(F74:F80) -> 0 | G81: =SUM(G74:G80) -> 0 | H81: 0
B82: Net Funding | C82: =C81-C72 -> 0 | D82: 0 | E82: 0 | F82: 0 | G82: 0 | H82: 0
B84: * THECB expects that anticipated grant funding would be supplemental supporting new degree programs.

Sheet Acad Prog Bus Plan Instruction (hidden)
A1: Academic Program Business Plan Template
A2: Pro Forma tab
A3: 1 | B3: Whoever is filling out the program will indicate their five starting years on the Pro Forma sheet in row 4 and columns F through J.
A4: 2 | B4: Indicate the projected number of students for each cohort.
A5: 3 | B5: Indicate who they will be hiring into each of the faculty positions. You can add more rows to this, but they need to be inserted above line 19 for the formulas to work correctly.
A6: 4 | B6: Indicate the amount of salary that they will pay the adjuncts.
A7: 5 | B7: Indicate who they will be hiring into each of the staff positions. You can add more rows to this, but they need to be inserted above line 26 for the formulas to work correctly.
A8: 6 | B8: Indicate the amount of salary that they will pay the graduate students.
A9: 7 | B9: Benefits are calculated at 30% for all staff and faculty members.
A10: 8 | B10: If there are year 0 costs that will be associated with this proposed program, these can be indicated in column E (Year 0).
A11: 9 | B11: Fill out their non-personnel costs that will be associated with this program in rows 35 through 42.
A12: 10 | B12: The Allocated to university Operations is calculated at 48% of Total Revenue from Enrollment (row 53).
A13: 11 | B13: If there is university support or other external revenue that will be associated with this program, then this will be indicated on rows 54 and 55.
A14: Revenue Basis tab
A15: 1 | B15: Select the appropriate College and Career Path from the dropdown box.
A16: 2 | B16: Select the correct label from the Instruction and Operation Formula dropdown box.
A17: 3 | B17: Fill out the number of hours that will be taken during the Fall, Spring, and Summer semesters.
A18: 4 | B18: If there is a Certificate & Executive Fee, then this needs to be put into C19.
A19: 5 | B19: The SCH by semester will populate once the student headcount has been inputted in the Pro Forma tab.

Sheet Instruction Formula Weights (hidden)
A1: Category and level | B1: Instruction Formula Weighting | C1: Bienium | H1: Update: | I1: 2025-08-01
A2: Agriculture: Lower Div. | B2: =L3 -> 1.35 | C2: 2026-2027 | H2: by: | I2: Vivianne Do | J2: 2025-07-25 | K2: Discipline | L2: Undergraduate Lower-Level | M2: Undergraduate Upper-Level | N2: Master's | O2: Doctoral | P2: Professional Practice
A3: Agriculture: Upper Div. | B3: =M3 -> 2.24 | C3: 2026-2027 | K3: Agriculture | L3: 1.35 | M3: 2.24 | N3: 8.92 | O3: 15.42 | P3: 0
A4: Agriculture: Masters | B4: =N3 -> 8.92 | C4: 2026-2027 | K4: Business Admin | L4: 1.1 | M4: 1.88 | N4: 3 | O4: 39.01
A5: Agriculture: Doctoral | B5: =O3 -> 15.42 | C5: 2026-2027 | K5: Developmental Ed | L5: 1 | M5: 0 | N5: 0 | O5: 0 | P5: 0
A6: Business Admin: Lower Div. | B6: =L4 -> 1.1 | C6: 2026-2027 | K6: Engineering | L6: 1.71 | M6: 2.73 | N6: 5.44 | O6: 19.57
A7: Business Admin: Upper Div. | B7: =M4 -> 1.88 | C7: 2026-2027 | K7: Fine Arts | L7: 1.38 | M7: 2.64 | N7: 7.54 | O7: 11.47
A8: Business Admin: Masters | B8: =N4 -> 3 | C8: 2026-2027 | K8: Health Services | L8: 0.94 | M8: 1.57 | N8: 2.57 | O8: 7.69 | P8: 3.35
A9: Business Admin: Doctoral | B9: =O4 -> 39.01 | C9: 2026-2027 | K9: Home Economics | L9: 0.9 | M9: 1.78 | N9: 3.18 | O9: 15.93 | P9: 0
A10: Business Admin: Special Professional | B10: =P4 -> 0 | C10: 2026-2027 | K10: Law | L10: 0 | M10: 0 | N10: 0 | O10: 0 | P10: 5
A11: Developmental Ed: Lower Div. | B11: =L5 -> 1 | C11: 2026-2027 | K11: Liberal Arts | L11: 1 | M11: 1.88 | N11: 4.4 | O11: 14.78 | P11: 0
A12: Engineering: Lower Div. | B12: =L6 -> 1.71 | C12: 2026-2027 | K12: Library Science | L12: 1.86 | M12: 2.53 | N12: 3.29 | O12: 26.29 | P12: 0
A13: Engineering: Upper Div. | B13: =M6 -> 2.73 | C13: 2026-2027 | K13: Nursing | L13: 1.56 | M13: 2.09 | N13: 2.77 | O13: 9.91
A14: Engineering: Masters | B14: =N6 -> 5.44 | C14: 2026-2027 | K14: Optometry | L14: 0 | M14: 0 | N14: 0 | O14: 0 | P14: 6.78
A15: Engineering: Doctoral | B15: =O6 -> 19.57 | C15: 2026-2027 | K15: Pharmacy | L15: 6.74 | M15: 3.61 | N15: 34.39 | O15: 45.27 | P15: 4.59
A16: Fine Arts: Lower Div. | B16: =L7 -> 1.38 | C16: 2026-2027 | K16: Physical Training | L16: 2.08 | M16: 7.66 | N16: 0 | O16: 0 | P16: 0
A17: Fine Arts: Upper Div. | B17: =M7 -> 2.64 | C17: 2026-2027 | K17: Science | L17: 1.34 | M17: 2.66 | N17: 5.48 | O17: 22.04
A18: Fine Arts: Masters | B18: =N7 -> 7.54 | C18: 2026-2027 | K18: Social Services | L18: 1.6 | M18: 1.9 | N18: 2.55 | O18: 24.79
A19: Fine Arts: Doctoral | B19: =O7 -> 11.47 | C19: 2026-2027 | K19: Teacher Ed | L19: 1.27 | M19: 1.95 | N19: 2.32 | O19: 7.59
A20: Health Services: Lower Div. | B20: =L8 -> 0.94 | C20: 2026-2027 | K20: Teacher Ed Practice | L20: 1.12 | M20: 2.37
A21: Health Services: Upper Div. | B21: =M8 -> 1.57 | C21: 2026-2027 | K21: Technology | L21: 1.49 | M21: 2.2 | N21: 4.3 | O21: 6.83
A22: Health Services: Masters | B22: =N8 -> 2.57 | C22: 2026-2027 | K22: Veterinary Medicine | L22: 0 | P22: 20.4
A23: Health Services: Doctoral | B23: =O8 -> 7.69 | C23: 2026-2027 | K23: Vocational Training | L23: 1.43 | M23: 3.06
A24: Health Services: Special Professional | B24: =P8 -> 3.35 | C24: 2026-2027
A25: Home Economics: Lower Div. | B25: =L9 -> 0.9 | C25: 2026-2027
A26: Home Economics: Upper Div. | B26: =M9 -> 1.78 | C26: 2026-2027
A27: Home Economics: Masters | B27: =N9 -> 3.18 | C27: 2026-2027
A28: Home Economics: Doctoral | B28: =O9 -> 15.93 | C28: 2026-2027
A29: Law: Special Professional | B29: =P10 -> 5 | C29: 2026-2027
A30: Liberal Arts: Lower Div. | B30: =L11 -> 1 | C30: 2026-2027
A31: Liberal Arts: Upper Div. | B31: =M11 -> 1.88 | C31: 2026-2027
A32: Liberal Arts: Masters | B32: =N11 -> 4.4 | C32: 2026-2027
A33: Liberal Arts: Doctoral | B33: =O11 -> 14.78 | C33: 2026-2027
A34: Library Science: Lower Div. | B34: =L12 -> 1.86 | C34: 2026-2027
A35: Library Science: Upper Div. | B35: =M12 -> 2.53 | C35: 2026-2027
A36: Library Science: Masters | B36: =N12 -> 3.29 | C36: 2026-2027
A37: Library Science: Doctoral | B37: =O12 -> 26.29 | C37: 2026-2027
A38: Nursing: Lower Div. | B38: =L13 -> 1.56 | C38: 2026-2027
A39: Nursing: Upper Div. | B39: =M13 -> 2.09 | C39: 2026-2027
A40: Nursing: Masters | B40: =N13 -> 2.77 | C40: 2026-2027
A41: Nursing: Doctoral | B41: =O13 -> 9.91 | C41: 2026-2027
A42: Optometry: Masters | B42: =N14 -> 0 | C42: 2026-2027
A43: Optometry: Doctoral | B43: =O14 -> 0 | C43: 2026-2027
A44: Optometry: Special Professional | B44: =P14 -> 6.78 | C44: 2026-2027
A45: Pharmacy: Lower Div. | B45: =L15 -> 6.74 | C45: 2026-2027
A46: Pharmacy: Upper Div. | B46: =M15 -> 3.61 | C46: 2026-2027
A47: Pharmacy: Masters | B47: =N15 -> 34.39 | C47: 2026-2027
A48: Pharmacy: Doctoral | B48: =O15 -> 45.27 | C48: 2026-2027
A49: Pharmacy: Special Professional | B49: =P15 -> 4.59 | C49: 2026-2027
A50: Physical Training: Lower Div. | B50: =L16 -> 2.08 | C50: 2026-2027
A51: Physical Training: Upper Div. | B51: =M16 -> 7.66 | C51: 2026-2027
A52: Science: Lower Div. | B52: =L17 -> 1.34 | C52: 2026-2027
A53: Science: Upper Div. | B53: =M17 -> 2.66 | C53: 2026-2027
A54: Science: Masters | B54: =N17 -> 5.48 | C54: 2026-2027
A55: Science: Doctoral | B55: =O17 -> 22.04 | C55: 2026-2027
A56: Social Services: Lower Div. | B56: =L18 -> 1.6 | C56: 2026-2027
A57: Social Services: Upper Div. | B57: =M18 -> 1.9 | C57: 2026-2027
A58: Social Services: Masters | B58: =N18 -> 2.55 | C58: 2026-2027
A59: Social Services: Doctoral | B59: =O18 -> 24.79 | C59: 2026-2027
A60: Teacher Ed: Lower Div. | B60: =L19 -> 1.27 | C60: 2026-2027
A61: Teacher Ed: Upper Div. | B61: =M19 -> 1.95 | C61: 2026-2027
A62: Teacher Ed: Masters | B62: =N19 -> 2.32 | C62: 2026-2027
A63: Teacher Ed: Doctoral | B63: =O19 -> 7.59 | C63: 2026-2027
A64: Teacher Ed Practice: Lower Div. | B64: =L20 -> 1.12 | C64: 2026-2027
A65: Teacher Ed Practice: Upper Div. | B65: =M20 -> 2.37 | C65: 2026-2027
A66: Technology: Lower Div. | B66: =L21 -> 1.49 | C66: 2026-2027
A67: Technology: Upper Div. | B67: =M21 -> 2.2 | C67: 2026-2027
A68: Technology: Masters | B68: =N21 -> 4.3 | C68: 2026-2027
A69: Technology: Doctoral | B69: =O21 -> 6.83 | C69: 2026-2027
A70: Veterinary Medicine: Special Professional | B70: =P22 -> 20.4 | C70: 2026-2027
A71: Vocational Training: Lower Div. | B71: =L23 -> 1.43 | C71: 2026-2027
A72: Vocational Training: Upper Div. | B72: =M23 -> 3.06 | C72: 2026-2027
A75: Agriculture: Lower Div. | B75: =L76 -> 1.48 | C75: 2024-2025 | H75: by: | I75: Vivianne Do | J75: 2023-07-31 | K75: Discipline | L75: Undergraduate Lower-Level | M75: Undergraduate Upper-Level | N75: Master's | O75: Doctoral | P75: Professional Practice
A76: Agriculture: Upper Div. | B76: =M76 -> 2.27 | C76: 2024-2025 | K76: Agriculture | L76: 1.48 | M76: 2.27 | N76: 9.17 | O76: 14.47 | P76: 0
A77: Agriculture: Masters | B77: =N76 -> 9.17 | C77: 2024-2025 | K77: Business Admin | L77: 1.1 | M77: 1.87 | N77: 3.16 | O77: 38.06
A78: Agriculture: Doctoral | B78: =O76 -> 14.47 | C78: 2024-2025 | K78: Developmental Ed | L78: 1 | M78: 0 | N78: 0 | O78: 0 | P78: 0
A79: Business Admin: Lower Div. | B79: =L77 -> 1.1 | C79: 2024-2025 | K79: Engineering | L79: 1.76 | M79: 2.8 | N79: 6.91 | O79: 18.79
A80: Business Admin: Upper Div. | B80: =M77 -> 1.87 | C80: 2024-2025 | K80: Fine Arts | L80: 1.37 | M80: 2.66 | N80: 7.51 | O80: 10.1
A81: Business Admin: Masters | B81: =N77 -> 3.16 | C81: 2024-2025 | K81: Health Services | L81: 0.96 | M81: 1.61 | N81: 2.62 | O81: 9.2 | P81: 3.28
A82: Business Admin: Doctoral | B82: =O77 -> 38.06 | C82: 2024-2025 | K82: Home Economics | L82: 0.95 | M82: 1.8 | N82: 3.45 | O82: 14.04 | P82: 0
A83: Business Admin: Special Professional | B83: =P77 -> 0 | C83: 2024-2025 | K83: Law | L83: 0 | M83: 0 | N83: 0 | O83: 0 | P83: 5.5
A84: Developmental Ed: Lower Div. | B84: =L78 -> 1 | C84: 2024-2025 | K84: Liberal Arts | L84: 1 | M84: 1.84 | N84: 4.46 | O84: 14.73 | P84: 0
A85: Engineering: Lower Div. | B85: =L79 -> 1.76 | C85: 2024-2025 | K85: Library Science | L85: 3.33 | M85: 1.92 | N85: 3.69 | O85: 26.48 | P85: 0
A86: Engineering: Upper Div. | B86: =M79 -> 2.8 | C86: 2024-2025 | K86: Nursing | L86: 1.55 | M86: 2.08 | N86: 2.72 | O86: 9.17
A87: Engineering: Masters | B87: =N79 -> 6.91 | C87: 2024-2025 | K87: Optometry | L87: 0 | M87: 0 | N87: 0 | O87: 0 | P87: 5.17
A88: Engineering: Doctoral | B88: =O79 -> 18.79 | C88: 2024-2025 | K88: Pharmacy | L88: 11.64 | M88: 4.73 | N88: 44.01 | O88: 52.25 | P88: 4.67
A89: Fine Arts: Lower Div. | B89: =L80 -> 1.37 | C89: 2024-2025 | K89: Physical Training | L89: 1.62 | M89: 1.97 | N89: 0 | O89: 0 | P89: 0
A90: Fine Arts: Upper Div. | B90: =M80 -> 2.66 | C90: 2024-2025 | K90: Science | L90: 1.34 | M90: 2.63 | N90: 7 | O90: 21.74
A91: Fine Arts: Masters | B91: =N80 -> 7.51 | C91: 2024-2025 | K91: Social Services | L91: 1.58 | M91: 1.91 | N91: 2.44 | O91: 29.07
A92: Fine Arts: Doctoral | B92: =O80 -> 10.1 | C92: 2024-2025 | K92: Teacher Ed | L92: 1.26 | M92: 1.9 | N92: 2.24 | O92: 7.82
A93: Health Services: Lower Div. | B93: =L81 -> 0.96 | C93: 2024-2025 | K93: Teacher Ed Practice | L93: 1.97 | M93: 2.34
A94: Health Services: Upper Div. | B94: =M81 -> 1.61 | C94: 2024-2025 | K94: Technology | L94: 1.78 | M94: 2.4 | N94: 5.84 | O94: 15.77
A95: Health Services: Masters | B95: =N81 -> 2.62 | C95: 2024-2025 | K95: Veterinary Medicine | L95: 0 | P95: 21.71
A96: Health Services: Doctoral | B96: =O81 -> 9.2 | C96: 2024-2025 | K96: Vocational Training | L96: 1.52 | M96: 3.52
A97: Health Services: Special Professional | B97: =P81 -> 3.28 | C97: 2024-2025
A98: Home Economics: Lower Div. | B98: =L82 -> 0.95 | C98: 2024-2025
A99: Home Economics: Upper Div. | B99: =M82 -> 1.8 | C99: 2024-2025
A100: Home Economics: Masters | B100: =N82 -> 3.45 | C100: 2024-2025
A101: Home Economics: Doctoral | B101: =O82 -> 14.04 | C101: 2024-2025
A102: Law: Special Professional | B102: =P83 -> 5.5 | C102: 2024-2025
A103: Liberal Arts: Lower Div. | B103: =L84 -> 1 | C103: 2024-2025
A104: Liberal Arts: Upper Div. | B104: =M84 -> 1.84 | C104: 2024-2025
A105: Liberal Arts: Masters | B105: =N84 -> 4.46 | C105: 2024-2025
A106: Liberal Arts: Doctoral | B106: =O84 -> 14.73 | C106: 2024-2025
A107: Library Science: Lower Div. | B107: =L85 -> 3.33 | C107: 2024-2025
A108: Library Science: Upper Div. | B108: =M85 -> 1.92 | C108: 2024-2025
A109: Library Science: Masters | B109: =N85 -> 3.69 | C109: 2024-2025
A110: Library Science: Doctoral | B110: =O85 -> 26.48 | C110: 2024-2025
A111: Nursing: Lower Div. | B111: =L86 -> 1.55 | C111: 2024-2025
A112: Nursing: Upper Div. | B112: =M86 -> 2.08 | C112: 2024-2025
A113: Nursing: Masters | B113: =N86 -> 2.72 | C113: 2024-2025
A114: Nursing: Doctoral | B114: =O86 -> 9.17 | C114: 2024-2025
A115: Optometry: Masters | B115: =N87 -> 0 | C115: 2024-2025
A116: Optometry: Doctoral | B116: =O87 -> 0 | C116: 2024-2025
A117: Optometry: Special Professional | B117: =P87 -> 5.17 | C117: 2024-2025
A118: Pharmacy: Lower Div. | B118: =L88 -> 11.64 | C118: 2024-2025
A119: Pharmacy: Upper Div. | B119: =M88 -> 4.73 | C119: 2024-2025
A120: Pharmacy: Masters | B120: =N88 -> 44.01 | C120: 2024-2025
A121: Pharmacy: Doctoral | B121: =O88 -> 52.25 | C121: 2024-2025
A122: Pharmacy: Special Professional | B122: =P88 -> 4.67 | C122: 2024-2025
A123: Physical Training: Lower Div. | B123: =L89 -> 1.62 | C123: 2024-2025
A124: Physical Training: Upper Div. | B124: =M89 -> 1.97 | C124: 2024-2025
A125: Science: Lower Div. | B125: =L90 -> 1.34 | C125: 2024-2025
A126: Science: Upper Div. | B126: =M90 -> 2.63 | C126: 2024-2025
A127: Science: Masters | B127: =N90 -> 7 | C127: 2024-2025
A128: Science: Doctoral | B128: =O90 -> 21.74 | C128: 2024-2025
A129: Social Services: Lower Div. | B129: =L91 -> 1.58 | C129: 2024-2025
A130: Social Services: Upper Div. | B130: =M91 -> 1.91 | C130: 2024-2025
A131: Social Services: Masters | B131: =N91 -> 2.44 | C131: 2024-2025
A132: Social Services: Doctoral | B132: =O91 -> 29.07 | C132: 2024-2025
A133: Teacher Ed: Lower Div. | B133: =L92 -> 1.26 | C133: 2024-2025
A134: Teacher Ed: Upper Div. | B134: =M92 -> 1.9 | C134: 2024-2025
A135: Teacher Ed: Masters | B135: =N92 -> 2.24 | C135: 2024-2025
A136: Teacher Ed: Doctoral | B136: =O92 -> 7.82 | C136: 2024-2025
A137: Teacher Ed Practice: Lower Div. | B137: =L93 -> 1.97 | C137: 2024-2025
A138: Teacher Ed Practice: Upper Div. | B138: =M93 -> 2.34 | C138: 2024-2025
A139: Technology: Lower Div. | B139: =L94 -> 1.78 | C139: 2024-2025
A140: Technology: Upper Div. | B140: =M94 -> 2.4 | C140: 2024-2025
A141: Technology: Masters | B141: =N94 -> 5.84 | C141: 2024-2025
A142: Technology: Doctoral | B142: =O94 -> 15.77 | C142: 2024-2025
A143: Veterinary Medicine: Special Professional | B143: =P95 -> 21.71 | C143: 2024-2025
A144: Vocational Training: Lower Div. | B144: =L96 -> 1.52 | C144: 2024-2025
A145: Vocational Training: Upper Div. | B145: =M96 -> 3.52 | C145: 2024-2025
A147: Agriculture: Lower Div. | B147: =L148 -> 1.64 | C147: 2022-2023 | H147: by: | I147: Vivianne Do | J147: 2021-06-30 | K147: Discipline | L147: Undergraduate Lower-Level | M147: Undergraduate Upper-Level | N147: Master's | O147: Doctoral | P147: Professional Practice
A148: Agriculture: Upper Div. | B148: =M148 -> 2.33 | C148: 2022-2023 | K148: Agriculture | L148: 1.64 | M148: 2.33 | N148: 8.51 | O148: 15.181 | P148: 0
A149: Agriculture: Masters | B149: =N148 -> 8.51 | C149: 2022-2023 | K149: Business Admin | L149: 1.13 | M149: 1.82 | N149: 3.47 | O149: 35.95
A150: Agriculture: Doctoral | B150: =O148 -> 15.181 | C150: 2022-2023 | K150: Developmental Ed | L150: 1 | M150: 0 | N150: 0 | O150: 0 | P150: 0
A151: Business Admin: Lower Div. | B151: =L149 -> 1.13 | C151: 2022-2023 | K151: Engineering | L151: 1.83 | M151: 2.85 | N151: 7.28 | O151: 19.68
A152: Business Admin: Upper Div. | B152: =M149 -> 1.82 | C152: 2022-2023 | K152: Fine Arts | L152: 1.39 | M152: 2.7 | N152: 7.49 | O152: 9.73
A153: Business Admin: Masters | B153: =N149 -> 3.47 | C153: 2022-2023 | K153: Health Services | L153: 0.93 | M153: 1.6 | N153: 2.72 | O153: 11.99 | P153: 3.17
A154: Business Admin: Doctoral | B154: =O149 -> 35.95 | C154: 2022-2023 | K154: Home Economics | L154: 1.04 | M154: 1.82 | N154: 3.65 | O154: 13.66 | P154: 0
A155: Business Admin: Special Professional | B155: =P149 -> 0 | C155: 2022-2023 | K155: Law | L155: 0 | M155: 0 | N155: 0 | O155: 0 | P155: 5.53
A156: Developmental Ed: Lower Div. | B156: =L150 -> 1 | C156: 2022-2023 | K156: Liberal Arts | L156: 1 | M156: 1.82 | N156: 4.72 | O156: 14.744 | P156: 0
A157: Engineering: Lower Div. | B157: =L151 -> 1.83 | C157: 2022-2023 | K157: Library Science | L157: 2.73 | M157: 1.99 | N157: 3.5 | O157: 16.55 | P157: 0
A158: Engineering: Upper Div. | B158: =M151 -> 2.85 | C158: 2022-2023 | K158: Nursing | L158: 1.35 | M158: 2.07 | N158: 2.68 | O158: 10.71
A159: Engineering: Masters | B159: =N151 -> 7.28 | C159: 2022-2023 | K159: Optometry | L159: 0 | M159: 0 | N159: 0 | O159: 0 | P159: 5.76
A160: Engineering: Doctoral | B160: =O151 -> 19.68 | C160: 2022-2023 | K160: Pharmacy | L160: 5.95 | M160: 4.48 | N160: 47.05 | O160: 48.02 | P160: 4.69
A161: Fine Arts: Lower Div. | B161: =L152 -> 1.39 | C161: 2022-2023 | K161: Physical Training | L161: 1.54 | M161: 1.6 | N161: 0 | O161: 0 | P161: 0
A162: Fine Arts: Upper Div. | B162: =M152 -> 2.7 | C162: 2022-2023 | K162: Science | L162: 1.38 | M162: 2.75 | N162: 7.67 | O162: 22.3
A163: Fine Arts: Masters | B163: =N152 -> 7.49 | C163: 2022-2023 | K163: Social Services | L163: 1.63 | M163: 1.91 | N163: 2.41 | O163: 28.72
A164: Fine Arts: Doctoral | B164: =O152 -> 9.73 | C164: 2022-2023 | K164: Teacher Ed | L164: 1.4 | M164: 1.91 | N164: 2.34 | O164: 8.7
A165: Health Services: Lower Div. | B165: =L153 -> 0.93 | C165: 2022-2023 | K165: Teacher Ed Practice | L165: 1.98 | M165: 2.3
A166: Health Services: Upper Div. | B166: =M153 -> 1.6 | C166: 2022-2023 | K166: Technology | L166: 1.89 | M166: 2.42 | N166: 4.86 | O166: 36.15
A167: Health Services: Masters | B167: =N153 -> 2.72 | C167: 2022-2023 | K167: Veterinary Medicine | L167: 0 | P167: 22.77
A168: Health Services: Doctoral | B168: =O153 -> 11.99 | C168: 2022-2023 | K168: Vocational Training | L168: 1.3 | M168: 3.46
A169: Health Services: Special Professional | B169: =P153 -> 3.17 | C169: 2022-2023
A170: Home Economics: Lower Div. | B170: =L154 -> 1.04 | C170: 2022-2023
A171: Home Economics: Upper Div. | B171: =M154 -> 1.82 | C171: 2022-2023
A172: Home Economics: Masters | B172: =N154 -> 3.65 | C172: 2022-2023
A173: Home Economics: Doctoral | B173: =O154 -> 13.66 | C173: 2022-2023
A174: Law: Special Professional | B174: =P155 -> 5.53 | C174: 2022-2023
A175: Liberal Arts: Lower Div. | B175: =L156 -> 1 | C175: 2022-2023
A176: Liberal Arts: Upper Div. | B176: =M156 -> 1.82 | C176: 2022-2023
A177: Liberal Arts: Masters | B177: =N156 -> 4.72 | C177: 2022-2023
A178: Liberal Arts: Doctoral | B178: =O156 -> 14.744 | C178: 2022-2023
A179: Library Science: Lower Div. | B179: =L157 -> 2.73 | C179: 2022-2023
A180: Library Science: Upper Div. | B180: =M157 -> 1.99 | C180: 2022-2023
A181: Library Science: Masters | B181: =N157 -> 3.5 | C181: 2022-2023
A182: Library Science: Doctoral | B182: =O157 -> 16.55 | C182: 2022-2023
A183: Nursing: Lower Div. | B183: =L158 -> 1.35 | C183: 2022-2023
A184: Nursing: Upper Div. | B184: =M158 -> 2.07 | C184: 2022-2023
A185: Nursing: Masters | B185: =N158 -> 2.68 | C185: 2022-2023
A186: Nursing: Doctoral | B186: =O158 -> 10.71 | C186: 2022-2023
A187: Optometry: Masters | B187: =N159 -> 0 | C187: 2022-2023
A188: Optometry: Doctoral | B188: =O159 -> 0 | C188: 2022-2023
A189: Optometry: Special Professional | B189: =P159 -> 5.76 | C189: 2022-2023
A190: Pharmacy: Lower Div. | B190: =L160 -> 5.95 | C190: 2022-2023
A191: Pharmacy: Upper Div. | B191: =M160 -> 4.48 | C191: 2022-2023
A192: Pharmacy: Masters | B192: =N160 -> 47.05 | C192: 2022-2023
A193: Pharmacy: Doctoral | B193: =O160 -> 48.02 | C193: 2022-2023
A194: Pharmacy: Special Professional | B194: =P160 -> 4.69 | C194: 2022-2023
A195: Physical Training: Lower Div. | B195: =L161 -> 1.54 | C195: 2022-2023
A196: Physical Training: Upper Div. | B196: =M161 -> 1.6 | C196: 2022-2023
A197: Science: Lower Div. | B197: =L162 -> 1.38 | C197: 2022-2023
A198: Science: Upper Div. | B198: =M162 -> 2.75 | C198: 2022-2023
A199: Science: Masters | B199: =N162 -> 7.67 | C199: 2022-2023
A200: Science: Doctoral | B200: =O162 -> 22.3 | C200: 2022-2023
A201: Social Services: Lower Div. | B201: =L163 -> 1.63 | C201: 2022-2023
A202: Social Services: Upper Div. | B202: =M163 -> 1.91 | C202: 2022-2023
A203: Social Services: Masters | B203: =N163 -> 2.41 | C203: 2022-2023
... 370 more rows

Sheet Tuition Groups Table (hidden)
A1: University of Houston Tuition Groups - FY 2026
A3: Group | B3: College | C3: Career | E3: College and Career | F3: Career | G3: Rate | H3: Statutory Tuition | I3: Designated Tuition | J3: Graduate/ Premium | K3: Tuition Total | L3: Consolidated University Services Fee | M3: College/ University Incidental Fees | N3: Total Mandatory Fees | O3: Total Tuition and Fees | P3: Non-Res Statutory Tuition | Q3: Non-Res Designated Tuition | R3: Total Non-Resident Tuition and Fees | S3: Allocated to set aside per SCH
A4: 4YF | B4: UG1 Four Year Fixed - Fall/Spring FTIC | C4: Undergraduate | D4: 1 | E4: =CONCATENATE(B4,": ",C4) -> UG1 Four Year Fixed - Fall/Spring FTIC: Undergraduate | F4: Undergraduate | G4: Term | H4: 750 | I4: 3974.82 | K4: =SUM(H4:J4) -> 4724.82 | L4: 614.25 | M4: 278.25 | N4: =L4+M4 -> 892.5 | O4: =K4+N4 -> 5617.32 | P4: 6075 | Q4: 1953.52 | R4: =O4+P4+Q4 -> 13645.84 | S4: =(0.2*(I4-46))*0.97 -> 762.19108
A5: 4YF | B5: UG2 Four Year Fixed - Fall/Spring FTIC | C5: Undergraduate | D5: 2 | E5: =CONCATENATE(B5,": ",C5) -> UG2 Four Year Fixed - Fall/Spring FTIC: Undergraduate | F5: Undergraduate | G5: Term | H5: 750 | I5: 4343.2 | K5: =SUM(H5:J5) -> 5093.2 | L5: 614.25 | M5: 278.25 | N5: =L5+M5 -> 892.5 | O5: 5985.7 | P5: 6075 | Q5: 1971.94 | R5: =O5+P5+Q5 -> 14032.64 | S5: =(0.2*(I5-46))*0.97 -> 833.6568
A6: 4YF | B6: UG3 Four Year Fixed - Fall/Spring FTIC | C6: Undergraduate | D6: 3 | E6: =CONCATENATE(B6,": ",C6) -> UG3 Four Year Fixed - Fall/Spring FTIC: Undergraduate | F6: Undergraduate | G6: Term | H6: 750 | I6: 4886.28 | K6: 5636.28 | L6: 614.25 | M6: 278.25 | N6: 892.5 | O6: =K6+N6 -> 6528.78 | P6: 6075 | Q6: 1999.09 | R6: =O6+P6+Q6 -> 14602.87 | S6: 939.01432
A7: 4YF | B7: UG4 Four Year Fixed - Fall/Spring FTIC | C7: Undergraduate | D7: 4 | E7: UG4 Four Year Fixed - Fall/Spring FTIC: Undergraduate | F7: Undergraduate | G7: Term | H7: 750 | I7: 5883.88 | K7: 6633.88 | L7: 614.25 | M7: 278.25 | N7: 892.5 | O7: =K7+N7 -> 7526.38 | P7: 6075 | Q7: 2048.97 | R7: =O7+P7+Q7 -> 15650.35 | S7: 1132.54872
A8: 4YF | B8: UG1 Four Year Fixed - Summer FTIC | C8: Undergraduate | D8: 5 | E8: UG1 Four Year Fixed - Summer FTIC: Undergraduate | F8: Undergraduate | G8: Term | H8: 250 | I8: 1324.94 | K8: 1574.94 | L8: 204.75 | M8: 92.75 | N8: 297.5 | O8: 1872.44 | P8: 2025 | Q8: 651.17 | R8: 4548.61 | S8: 248.11436
A9: 4YF | B9: UG2 Four Year Fixed - Summer FTIC | C9: Undergraduate | D9: 6 | E9: UG2 Four Year Fixed - Summer FTIC: Undergraduate | F9: Undergraduate | G9: Term | H9: 250 | I9: 1447.73 | K9: 1697.73 | L9: 204.75 | M9: 92.75 | N9: 297.5 | O9: 1995.23 | P9: 2025 | Q9: 657.31 | R9: 4677.54 | S9: 271.93562
A10: 4YF | B10: UG3 Four Year Fixed - Summer FTIC | C10: Undergraduate | D10: 7 | E10: UG3 Four Year Fixed - Summer FTIC: Undergraduate | F10: Undergraduate | G10: Term | H10: 250 | I10: 1628.76 | K10: 1878.76 | L10: 204.75 | M10: 92.75 | N10: 297.5 | O10: 2176.26 | P10: 2025 | Q10: 666.36 | R10: 4867.62 | S10: 307.05544
A11: 4YF | B11: UG4 Four Year Fixed - Summer FTIC | C11: Undergraduate | D11: 8 | E11: UG4 Four Year Fixed - Summer FTIC: Undergraduate | F11: Undergraduate | G11: Term | H11: 250 | I11: 1961.29 | K11: 2211.29 | L11: 204.75 | M11: 92.75 | N11: 297.5 | O11: 2508.79 | P11: 2025 | Q11: 682.99 | R11: 5216.78 | S11: 371.56626
A12: 4YF | B12: UG1 Four Year Fixed - Fall/Spring Transfer | C12: Undergraduate | D12: 9 | E12: UG1 Four Year Fixed - Fall/Spring Transfer: Undergraduate | F12: Undergraduate | G12: Term | H12: 750 | I12: 4026.88 | K12: 4776.88 | L12: 614.25 | M12: 278.25 | N12: 892.5 | O12: 5669.38 | P12: 6075 | Q12: 1956.12 | R12: 13700.5 | S12: 772.29072
A13: 4YF | B13: UG2 Four Year Fixed - Fall/Spring Transfer | C13: Undergraduate | D13: 10 | E13: UG2 Four Year Fixed - Fall/Spring Transfer: Undergraduate | F13: Undergraduate | G13: Term | H13: 750 | I13: 4398.68 | K13: 5148.68 | L13: 614.25 | M13: 278.25 | N13: 892.5 | O13: 6041.18 | P13: 6075 | Q13: 1974.71 | R13: 14090.89 | S13: 844.41992
A14: 4YF | B14: UG3 Four Year Fixed - Fall/Spring Transfer | C14: Undergraduate | D14: 11 | E14: UG3 Four Year Fixed - Fall/Spring Transfer: Undergraduate | F14: Undergraduate | G14: Term | H14: 750 | I14: 4946.82 | K14: 5696.82 | L14: 614.25 | M14: 278.25 | N14: 892.5 | O14: 6589.32 | P14: 6075 | Q14: 2002.12 | R14: 14666.44 | S14: 950.75908
A15: 4YF | B15: UG4 Four Year Fixed - Fall/Spring Transfer | C15: Undergraduate | D15: 12 | E15: UG4 Four Year Fixed - Fall/Spring Transfer: Undergraduate | F15: Undergraduate | G15: Term | H15: 750 | I15: 5953.69 | K15: 6703.69 | L15: 614.25 | M15: 278.25 | N15: 892.5 | O15: 7596.19 | P15: 6075 | Q15: 2052.46 | R15: 15723.65 | S15: 1146.09186
A16: 4YF | B16: UG1 Four Year Fixed - Summer Transfer | C16: Undergraduate | D16: 13 | E16: UG1 Four Year Fixed - Summer Transfer: Undergraduate | F16: Undergraduate | G16: Term | H16: 250 | I16: 1342.29 | K16: 1592.29 | L16: 204.75 | M16: 92.75 | N16: 297.5 | O16: 1889.79 | P16: 2025 | Q16: 652.04 | R16: 4566.83 | S16: 251.48026
A17: 4YF | B17: UG2 Four Year Fixed - Summer Transfer | C17: Undergraduate | D17: 14 | E17: UG2 Four Year Fixed - Summer Transfer: Undergraduate | F17: Undergraduate | G17: Term | H17: 250 | I17: 1466.23 | K17: 1716.23 | L17: 204.75 | M17: 92.75 | N17: 297.5 | O17: 2013.73 | P17: 2025 | Q17: 658.24 | R17: 4696.97 | S17: 275.52462
A18: 4YF | B18: UG3 Four Year Fixed - Summer Transfer | C18: Undergraduate | D18: 15 | E18: UG3 Four Year Fixed - Summer Transfer: Undergraduate | F18: Undergraduate | G18: Term | H18: 250 | I18: 1648.94 | K18: 1898.94 | L18: 204.75 | M18: 92.75 | N18: 297.5 | O18: 2196.44 | P18: 2025 | Q18: 667.37 | R18: 4888.81 | S18: 310.97036
A19: 4YF | B19: UG4 Four Year Fixed - Summer Transfer | C19: Undergraduate | D19: 16 | E19: UG4 Four Year Fixed - Summer Transfer: Undergraduate | F19: Undergraduate | G19: Term | H19: 250 | I19: 1984.56 | K19: 2234.56 | L19: 204.75 | M19: 92.75 | N19: 297.5 | O19: 2532.06 | P19: 2025 | Q19: 684.15 | R19: 5241.21 | S19: 376.08064
A20: UG1 | B20: Education | C20: Undergraduate | D20: 17 | E20: Education: Undergraduate | F20: Undergraduate | G20: SCH | H20: 50 | I20: 256.06 | J20: 0 | K20: 306.06 | L20: 40.95 | M20: 14.85 | N20: 55.8 | O20: 361.86 | P20: 405 | Q20: 124.6 | R20: 891.46 | S20: 40.75164
A21: UG1 | B21: Hobby School | C21: Undergraduate | D21: 18 | E21: Hobby School: Undergraduate | F21: Undergraduate | G21: SCH | H21: 50 | I21: 256.06 | J21: 0 | K21: 306.06 | L21: 40.95 | M21: 14.85 | N21: 55.8 | O21: 361.86 | P21: 405 | Q21: 124.6 | R21: 891.46 | S21: 40.75164
A22: UG1 | B22: Liberal Arts and Social Sciences - Liberal Arts | C22: Undergraduate | D22: 19 | E22: Liberal Arts and Social Sciences - Liberal Arts: Undergraduate | F22: Undergraduate | G22: SCH | H22: 50 | I22: 256.06 | J22: 0 | K22: 306.06 | L22: 40.95 | M22: 14.85 | N22: 55.8 | O22: 361.86 | P22: 405 | Q22: 124.6 | R22: 891.46 | S22: 40.75164
A23: UG2 | B23: University Scholars (Exploratory Studies) | C23: Undergraduate | D23: 20 | E23: University Scholars (Exploratory Studies): Undergraduate | F23: Undergraduate | G23: SCH | H23: 50 | I23: 270.28 | J23: 0 | K23: 320.28 | L23: 40.95 | M23: 24.36 | N23: 65.31 | O23: 385.59 | P23: 405 | Q23: 125.79 | R23: 916.38 | S23: 43.51032
A24: UG2 | B24: Liberal Arts and Social Sciences - Fine & Performing Arts | C24: Undergraduate | D24: 21 | E24: Liberal Arts and Social Sciences - Fine & Performing Arts: Undergraduate | F24: Undergraduate | G24: SCH | H24: 50 | I24: 270.28 | J24: 0 | K24: 320.28 | L24: 40.95 | M24: 24.36 | N24: 65.31 | O24: 385.59 | P24: 405 | Q24: 125.79 | R24: 916.38 | S24: =(0.2*(I24-46))*0.97 -> 43.51032
A25: UG2 | B25: Hotel & Restaurant Management | C25: Undergraduate | D25: 22 | E25: Hotel & Restaurant Management: Undergraduate | F25: Undergraduate | G25: SCH | H25: 50 | I25: 270.28 | J25: 0 | K25: 320.28 | L25: 40.95 | M25: 24.36 | N25: 65.31 | O25: 385.59 | P25: 405 | Q25: 125.79 | R25: 916.38 | S25: 43.51032
A26: UG2 | B26: Natural Sciences & Mathematics | C26: Undergraduate | D26: 23 | E26: Natural Sciences & Mathematics: Undergraduate | F26: Undergraduate | G26: SCH | H26: 50 | I26: 270.28 | J26: 0 | K26: 320.28 | L26: 40.95 | M26: 24.36 | N26: 65.31 | O26: 385.59 | P26: 405 | Q26: 125.79 | R26: 916.38 | S26: 43.51032
A27: UG2 | B27: Pharmacy | C27: Undergraduate | D27: 24 | E27: Pharmacy: Undergraduate | F27: Undergraduate | G27: SCH | H27: 50 | I27: 270.28 | J27: 0 | K27: 320.28 | L27: 40.95 | M27: 24.36 | N27: 65.31 | O27: 385.59 | P27: 405 | Q27: 125.79 | R27: 916.38 | S27: 43.51032
A28: UG2 | B28: College of Arts | C28: Undergraduate | D28: 25 | E28: College of Arts: Undergraduate | F28: Undergraduate | G28: SCH | H28: 50 | I28: 270.28 | J28: 0 | K28: 320.28 | L28: 40.95 | M28: 24.36 | N28: 65.31 | O28: 385.59 | P28: 405 | Q28: 125.79 | R28: 916.38 | S28: 43.51032
A29: UG3 | B29: Architecture | C29: Undergraduate | D29: 26 | E29: Architecture: Undergraduate | F29: Undergraduate | G29: SCH | H29: 50 | I29: 267.56 | J29: 0 | K29: 317.56 | L29: 40.95 | M29: 62.06 | N29: 103.01 | O29: 420.57 | P29: 405 | Q29: 127.54 | R29: 953.11 | S29: 42.98264
A30: UG3 | B30: Business | C30: Undergraduate | D30: 27 | E30: Business: Undergraduate | F30: Undergraduate | G30: SCH | H30: 50 | I30: 267.56 | J30: 0 | K30: 317.56 | L30: 40.95 | M30: 62.06 | N30: 103.01 | O30: 420.57 | P30: 405 | Q30: 127.54 | R30: 953.11 | S30: 42.98264
A31: UG3 | B31: Engineering | C31: Undergraduate | D31: 28 | E31: Engineering: Undergraduate | F31: Undergraduate | G31: SCH | H31: 50 | I31: 267.56 | J31: 0 | K31: 317.56 | L31: 40.95 | M31: 62.06 | N31: 103.01 | O31: 420.57 | P31: 405 | Q31: 127.54 | R31: 953.11 | S31: 42.98264
A32: UG3 | B32: Technology | C32: Undergraduate | D32: 29 | E32: Technology: Undergraduate | F32: Undergraduate | G32: SCH | H32: 50 | I32: 267.56 | J32: 0 | K32: 317.56 | L32: 40.95 | M32: 62.06 | N32: 103.01 | O32: 420.57 | P32: 405 | Q32: 127.54 | R32: 953.11 | S32: 42.98264
A33: UG4 | B33: Nursing | C33: Undergraduate | D33: 30 | E33: Nursing: Undergraduate | F33: Undergraduate | G33: SCH | H33: 50 | I33: 364.65 | J33: 0 | K33: 414.65 | L33: 40.95 | M33: 29.22 | N33: 70.17 | O33: 484.82 | P33: 405 | Q33: 130.75 | R33: 1020.57 | S33: 61.8181
A34: GR01 | B34: Architecture | C34: Prof Masters | D34: 31 | E34: Architecture: Prof Masters | F34: Prof Masters | G34: SCH | H34: 50 | I34: 408.49 | J34: 50 | K34: 508.49 | L34: 41.87 | M34: 41.82 | N34: 83.69 | O34: 592.18 | P34: 405 | Q34: 100 | R34: 1097.18 | S34: =(0.2*(I34-46))*0.85 -> 61.6233
A35: GR02 | B35: Business | C35: Prof Masters | D35: 32 | E35: Business: Prof Masters | F35: Prof Masters | G35: SCH | H35: 50 | I35: 663.85 | J35: 50 | K35: 763.85 | L35: 41.87 | M35: 131.01 | N35: 172.88 | O35: 936.73 | P35: 405 | Q35: 100 | R35: 1441.73 | S35: =(0.2*(I35-46))*0.85 -> 105.0345
A36: GR03 | B36: Business | C36: Doctoral/Pre-Doc | D36: 33 | E36: Business: Doctoral/Pre-Doc | F36: Doctoral/Pre-Doc | G36: SCH | H36: 50 | I36: 192.13 | J36: 50 | K36: 292.13 | L36: 41.87 | M36: 0 | N36: 41.87 | O36: =K36+N36 -> 334 | P36: 405 | Q36: 100 | R36: =O36+P36+Q36 -> 839 | S36: 24.8421
A37: GR04 | B37: Education | C37: Prof Masters | D37: 34 | E37: Education: Prof Masters | F37: Prof Masters | G37: SCH | H37: 50 | I37: 292.07 | J37: 50 | K37: 392.07 | L37: 41.87 | M37: 55.47 | N37: 97.34 | O37: 489.41 | P37: 405 | Q37: 100 | R37: 994.41 | S37: 41.8319
A38: GR05 | B38: Education | C38: Doctoral/Pre-Doc | D38: 35 | E38: Education: Doctoral/Pre-Doc | F38: Doctoral/Pre-Doc | G38: SCH | H38: 50 | I38: 188.66 | J38: 50 | K38: 288.66 | L38: 41.87 | M38: 55.47 | N38: 97.34 | O38: 386 | P38: 405 | Q38: 100 | R38: 891 | S38: 24.2522
A39: GR06 | B39: Engineering | C39: Prof Masters | D39: 36 | E39: Engineering: Prof Masters | F39: Prof Masters | G39: SCH | H39: 50 | I39: 400.06 | J39: 50 | K39: 500.06 | L39: 41.87 | M39: 37.23 | N39: 79.1 | O39: 579.16 | P39: 405 | Q39: 100 | R39: 1084.16 | S39: 60.1902
A40: GR07 | B40: Engineering | C40: Doctoral/Pre-Doc | D40: 37 | E40: Engineering: Doctoral/Pre-Doc | F40: Doctoral/Pre-Doc | G40: SCH | H40: 50 | I40: 248.9 | J40: 50 | K40: 348.9 | L40: 41.87 | M40: 37.23 | N40: 79.1 | O40: 428 | P40: 405 | Q40: 100 | R40: 933 | S40: 34.493
A41: GR08 | B41: Social Work | C41: Prof Masters | D41: 38 | E41: Social Work: Prof Masters | F41: Prof Masters | G41: SCH | H41: 50 | I41: 328.86 | J41: 50 | K41: 428.86 | L41: 41.87 | M41: 4.03 | N41: 45.9 | O41: 474.76 | P41: 405 | Q41: 100 | R41: 979.76 | S41: 48.0862
A42: GR09 | B42: Social Work | C42: Doctoral/Pre-Doc | D42: 39 | E42: Social Work: Doctoral/Pre-Doc | F42: Doctoral/Pre-Doc | G42: SCH | H42: 50 | I42: 230.1 | J42: 50 | K42: 330.1 | L42: 41.87 | M42: 4.03 | N42: 45.9 | O42: 376 | P42: 405 | Q42: 100 | R42: 881 | S42: 31.297
A43: GR10 | B43: Global Leadership Hospitality (Formerly HRM) | C43: Prof Masters | D43: 40 | E43: Global Leadership Hospitality (Formerly HRM): Prof Masters | F43: Prof Masters | G43: SCH | H43: 50 | I43: 372.74 | J43: 50 | K43: 472.74 | L43: 41.87 | M43: 50.34 | N43: 92.21 | O43: 564.95 | P43: 405 | Q43: 100 | R43: 1069.95 | S43: 55.5458
A44: GR26 | B44: Global Leadership Hospitality (Formerly HRM) | C44: Doctoral/Pre-Doc | D44: 41 | E44: Global Leadership Hospitality (Formerly HRM): Doctoral/Pre-Doc | F44: Doctoral/Pre-Doc | G44: SCH | H44: 50 | I44: 192.13 | J44: 50 | K44: 292.13 | L44: 41.87 | M44: 0 | N44: 41.87 | O44: 334 | P44: 405 | Q44: 100 | R44: 839 | S44: 24.8421
A45: GR11 | B45: Law | C45: Professional (J.D.) | D45: 42 | E45: Law: Professional (J.D.) | F45: Professional (J.D.) | G45: SCH | H45: 80 | I45: 770.53 | J45: 160 | K45: 1010.53 | L45: 41.87 | M45: 98.88 | N45: 140.75 | O45: 1151.28 | P45: 375 | Q45: 100 | R45: 1626.28 | S45: 123.1701
A46: GR12 | B46: Law | C46: Graduate (L.L.M) | D46: 43 | E46: Law: Graduate (L.L.M) | F46: Graduate (L.L.M) | G46: SCH | H46: 80 | I46: 971.49 | J46: 160 | K46: =SUM(H46:J46) -> 1211.49 | L46: 41.87 | M46: 136.86 | N46: 178.73 | O46: 1390.22 | P46: 375 | Q46: 100 | R46: 1865.22 | S46: 157.3333
A47: GR13 | B47: Liberal Arts & Social Sciences | C47: Grad CLASS 3 (Communications) | D47: 44 | E47: Liberal Arts & Social Sciences: Grad CLASS 3 (Communications) | F47: Grad CLASS 3 (Communications) | G47: SCH | H47: 50 | I47: 301.71 | J47: 50 | K47: 401.71 | L47: 41.87 | M47: 26.66 | N47: 68.53 | O47: 470.24 | P47: 405 | Q47: 100 | R47: 975.24 | S47: 43.4707
A48: GR14 | B48: Liberal Arts & Social Sciences | C48: Prof Grad CLASS 1 (Prof Masters) | D48: 45 | E48: Liberal Arts & Social Sciences: Prof Grad CLASS 1 (Prof Masters) | F48: Prof Grad CLASS 1 (Prof Masters) | G48: SCH | H48: 50 | I48: 279.11 | J48: 50 | K48: 379.11 | L48: 41.87 | M48: 0.78 | N48: 42.65 | O48: =K48+N48 -> 421.76 | P48: 405 | Q48: 100 | R48: =O48+P48+Q48 -> 926.76 | S48: 39.6287
A49: GR15 | B49: Liberal Arts & Social Sciences | C49: Grad CLASS 2 Masters | D49: 46 | E49: Liberal Arts & Social Sciences: Grad CLASS 2 Masters | F49: Grad CLASS 2 Masters | G49: SCH | H49: 50 | I49: 270.09 | J49: 50 | K49: 370.09 | L49: 41.87 | M49: 0.78 | N49: 42.65 | O49: =K49+N49 -> 412.74 | P49: 405 | Q49: 100 | R49: =O49+P49+Q49 -> 917.74 | S49: 38.0953
A50: GR23 | B50: Liberal Arts & Social Sciences | C50: Doctoral CLASS 4 | D50: 47 | E50: Liberal Arts & Social Sciences: Doctoral CLASS 4 | F50: Doctoral CLASS 4 | G50: SCH | H50: 50 | I50: 177.35 | J50: 50 | K50: 277.35 | L50: 41.87 | M50: 0.78 | N50: 42.65 | O50: 320 | P50: 405 | Q50: 100 | R50: 825 | S50: 22.3295
A51: GR16 | B51: Natural Sciences & Mathematics | C51: Prof Masters | D51: 48 | E51: Natural Sciences & Mathematics: Prof Masters | F51: Prof Masters | G51: SCH | H51: 50 | I51: 303.49 | J51: 50 | K51: 403.49 | L51: 41.87 | M51: 0 | N51: 41.87 | O51: 445.36 | P51: 405 | Q51: 100 | R51: 950.36 | S51: 43.7733
A52: GR17 | B52: Natural Sciences & Mathematics | C52: Doctoral/Pre-Doc | D52: 49 | E52: Natural Sciences & Mathematics: Doctoral/Pre-Doc | F52: Doctoral/Pre-Doc | G52: SCH | H52: 50 | I52: 192.13 | J52: 50 | K52: 292.13 | L52: 41.87 | M52: 0 | N52: 41.87 | O52: 334 | P52: 405 | Q52: 100 | R52: 839 | S52: 24.8421
A53: GR18 | B53: Optometry | C53: Professional (O.D.) | D53: 50 | E53: Optometry: Professional (O.D.) | F53: Professional (O.D.) | G53: SCH | H53: 50 | I53: 438.67 | J53: 150 | K53: 638.67 | L53: 41.87 | M53: 24.01 | N53: 65.88 | O53: 704.55 | P53: 405 | Q53: 100 | R53: 1209.55 | S53: 66.7539
A54: GR19 | B54: Optometry | C54: Graduate (Ph.D.) | D54: 51 | E54: Optometry: Graduate (Ph.D.) | F54: Graduate (Ph.D.) | G54: SCH | H54: 50 | I54: 186.09 | J54: 0 | K54: 236.09 | L54: 41.87 | M54: 0.04 | N54: 41.91 | O54: 278 | P54: 405 | Q54: 100 | R54: 783 | S54: 23.8153
A55: GR20 | B55: Pharmacy | C55: Professional (Pharm.D) | D55: 52 | E55: Pharmacy: Professional (Pharm.D) | F55: Professional (Pharm.D) | G55: SCH | H55: 50 | I55: 424.8 | J55: 100 | K55: 574.8 | L55: 41.87 | M55: 40.58 | N55: 82.45 | O55: 657.25 | P55: 405 | Q55: 100 | R55: 1162.25 | S55: 64.396
A56: GR21 | B56: Pharmacy | C56: Graduate (Ph.D.) | D56: 53 | E56: Pharmacy: Graduate (Ph.D.) | F56: Graduate (Ph.D.) | G56: SCH | H56: 50 | I56: 281.13 | J56: 50 | K56: 381.13 | L56: 41.87 | M56: 0 | N56: 41.87 | O56: 423 | P56: 405 | Q56: 100 | R56: 928 | S56: 39.9721
A57: GR22 | B57: Technology (Now Engineering) | C57: Prof Masters | D57: 54 | E57: Technology (Now Engineering): Prof Masters | F57: Prof Masters | G57: SCH | H57: 50 | I57: 489.87 | J57: 50 | K57: 589.87 | L57: 41.87 | M57: 44.51 | N57: 86.38 | O57: 676.25 | P57: 405 | Q57: 100 | R57: 1181.25 | S57: 75.4579
A58: GR25 | B58: Nursing | C58: Prof Masters | D58: 55 | E58: Nursing: Prof Masters | F58: Prof Masters | G58: SCH | H58: 50 | I58: 457.15 | J58: 50 | K58: 557.15 | L58: 41.87 | M58: 20.08 | N58: 61.95 | O58: 619.1 | P58: 405 | Q58: 100 | R58: 1124.1 | S58: 69.8955
A59: GR27 | B59: College of Arts | C59: COA 3 - Fine/Performing Arts | D59: 56 | E59: College of Arts: COA 3 - Fine/Performing Arts | F59: COA 3 - Fine/Performing Arts | G59: SCH | H59: 50 | I59: 301.71 | J59: 50 | K59: 401.71 | L59: 41.87 | M59: 26.66 | N59: 68.53 | O59: 470.24 | P59: 405 | Q59: 100 | R59: 975.24 | S59: 43.4707
A60: GR28 | B60: College of Arts | C60: COA 1 - Prof Grad | D60: 57 | E60: College of Arts: COA 1 - Prof Grad | F60: COA 1 - Prof Grad | G60: SCH | H60: 50 | I60: 279.11 | J60: 50 | K60: 379.11 | L60: 41.87 | M60: 0.78 | N60: 42.65 | O60: 421.76 | P60: 405 | Q60: 100 | R60: 926.76 | S60: 39.6287
A61: GR29 | B61: College of Arts | C61: COA 2 - Graduate | D61: 58 | E61: College of Arts: COA 2 - Graduate | F61: COA 2 - Graduate | G61: SCH | H61: 50 | I61: 270.09 | J61: 50 | K61: 370.09 | L61: 41.87 | M61: 0.78 | N61: 42.65 | O61: 412.74 | P61: 405 | Q61: 100 | R61: 917.74 | S61: 38.0953
A62: GR30 | B62: College of Arts | C62: COA 4 - PHD/Doctoral | D62: 59 | E62: College of Arts: COA 4 - PHD/Doctoral | F62: COA 4 - PHD/Doctoral | G62: SCH | H62: 50 | I62: 177.35 | J62: 50 | K62: 277.35 | L62: 41.87 | M62: 0.78 | N62: 42.65 | O62: 320 | P62: 405 | Q62: 100 | R62: 825 | S62: 22.3295
A63: GR31 | B63: Hobby School | C63: Prof Masters | D63: 60 | E63: Hobby School: Prof Masters | F63: Prof Masters | G63: SCH | H63: 50 | I63: 302.71 | J63: 50 | K63: 402.71 | L63: 41.87 | M63: 0.78 | N63: 42.65 | O63: 445.36 | P63: 405 | Q63: 100 | R63: 950.36 | S63: 43.6407
A64: GR70 | B64: College of Medicine (Year 1 Fall/Spring) | C64: Professional (MD) | D64: 61 | E64: College of Medicine (Year 1 Fall/Spring): Professional (MD) | F64: Professional (MD) | G64: Term | H64: 3275 | I64: 3200.06 | J64: 3275 | K64: 9750.06 | L64: 826.94 | M64: 1000 | N64: 1826.94 | O64: 11577 | P64: 6550 | Q64: 0 | R64: 18127
A65: GR70 | B65: College of Medicine (Year 2 Fall/Spring) | C65: Professional (MD) | D65: 62 | E65: College of Medicine (Year 2 Fall/Spring): Professional (MD) | F65: Professional (MD) | G65: Term | H65: 2620 | I65: 2560.05 | J65: 2620 | K65: 7800.05 | L65: 661.55 | M65: 800 | N65: 1461.55 | O65: 9261.6 | P65: 5240 | Q65: 0 | R65: 14501.6
A66: GR70 | B66: College of Medicine (Year 2 Summer) | C66: Professional (MD) | D66: 63 | E66: College of Medicine (Year 2 Summer): Professional (MD) | F66: Professional (MD) | G66: Term | H66: 1310 | I66: 1310 | J66: 1280.03 | K66: 3900.03 | L66: 330.77 | M66: 400 | N66: 730.77 | O66: 4630.8 | P66: 2620 | Q66: 0 | R66: 7250.8
A67: GR70 | B67: College of Medicine (Year 3 Fall/Spring) | C67: Professional (MD) | D67: 64 | E67: College of Medicine (Year 3 Fall/Spring): Professional (MD) | F67: Professional (MD) | G67: Term | H67: 2620 | I67: 2560.05 | J67: 2620 | K67: 7800.05 | L67: 661.55 | M67: 800 | N67: 1461.55 | O67: 9261.6 | P67: 5240 | Q67: 0 | R67: 14501.6
A68: GR70 | B68: College of Medicine (Year 3 Summer) | C68: Professional (MD) | D68: 65 | E68: College of Medicine (Year 3 Summer): Professional (MD) | F68: Professional (MD) | G68: Term | H68: 1310 | I68: 1310 | J68: 1280.03 | K68: 3900.03 | L68: 330.77 | M68: 400 | N68: 730.77 | O68: 4630.8 | P68: 2620 | Q68: 0 | R68: 7250.8
A69: GR70 | B69: College of Medicine (Year 4 Fall/Spring) | C69: Professional (MD) | D69: 66 | E69: College of Medicine (Year 4 Fall/Spring): Professional (MD) | F69: Professional (MD) | G69: Term | H69: 3275 | I69: 3200.06 | J69: 3275 | K69: 9750.06 | L69: 826.94 | M69: 1000 | N69: =L69+M69 -> 1826.94 | O69: 11577 | P69: 6550 | Q69: 0 | R69: 18127
A70: UHE | B70: Business | C70: Undergraduate | D70: 67 | E70: =CONCATENATE(B70,": ",C70) -> Business: Undergraduate | F70: Undergraduate | G70: SCH | H70: 50 | I70: 359.25 | J70: 0 | K70: 409.25 | L70: 0 | M70: 0 | N70: 0 | O70: 409.25 | P70: 405 | Q70: 100 | R70: 914.25
A71: UHE | B71: Business - Nonresident Out of State | C71: Undergraduate | D71: 68 | E71: =CONCATENATE(A71,"-",B71,": ",C71) -> UHE-Business - Nonresident Out of State: Undergraduate | F71: Undergraduate | G71: SCH | H71: 0 | I71: 0 | J71: 0 | K71: 0 | L71: 0 | M71: 0 | N71: 0 | O71: 0 | P71: 0 | Q71: 0 | R71: 0
A72: UHE | B72: Business | C72: Prof - Graduate | D72: 69 | E72: =CONCATENATE(A72,"-",B72,": ",C72) -> UHE-Business: Prof - Graduate | F72: Prof - Graduate | G72: SCH | H72: 50 | I72: 766.09 | J72: 50 | K72: 866.09 | L72: 0 | M72: 0 | N72: 0 | O72: 866.09 | P72: 405 | Q72: 100 | R72: 1371.09
A73: UHE | B73: Business - Nonresident Out of State | C73: Prof - Graduate | D73: 70 | E73: UHE-Business - Nonresident Out of State: Prof - Graduate | F73: Prof - Graduate | G73: SCH | H73: 0 | I73: 0 | J73: 0 | K73: 0 | L73: 0 | M73: 0 | N73: 0 | O73: 0 | P73: 0 | Q73: 0 | R73: 0
A74: UHE | B74: Engineering | C74: Prof - Graduate | D74: 71 | E74: UHE-Engineering: Prof - Graduate | F74: Prof - Graduate | G74: SCH | H74: 50 | I74: 645 | J74: 50 | K74: 745 | L74: 0 | M74: 0 | N74: 0 | O74: 745 | P74: 405 | Q74: 100 | R74: 1250
A75: UHE | B75: Engineering - Nonresident Out of State | C75: Prof - Graduate | D75: 72 | E75: UHE-Engineering - Nonresident Out of State: Prof - Graduate | F75: Prof - Graduate | G75: SCH | H75: 0 | I75: 0 | J75: 0 | K75: 0 | L75: 0 | M75: 0 | N75: 0 | O75: 0 | P75: 0 | Q75: 0 | R75: 0
A76: UHE | B76: Engineering-Technology | C76: Prof - Graduate | D76: 73 | E76: UHE-Engineering-Technology: Prof - Graduate | F76: Prof - Graduate | G76: SCH | H76: 50 | I76: 524.3 | J76: 50 | K76: 624.3 | L76: 0 | M76: 0 | N76: 0 | O76: 624.3 | P76: 405 | Q76: 100 | R76: 1129.3
A77: UHE | B77: Engineering-Technology - Nonresident Out of State | C77: Prof - Graduate | D77: 74 | E77: UHE-Engineering-Technology - Nonresident Out of State: Prof - Graduate | F77: Prof - Graduate | G77: SCH | H77: 0 | I77: 0 | J77: 0 | K77: 0 | L77: 0 | M77: 0 | N77: 0 | O77: 0 | P77: 0 | Q77: 0 | R77: 0
A78: UHE | B78: CLASS | C78: Prof - Graduate | D78: 75 | E78: UHE-CLASS: Prof - Graduate | F78: Prof - Graduate | G78: SCH | H78: 50 | I78: 500 | J78: 50 | K78: 600 | L78: 0 | M78: 0 | N78: 0 | O78: 600 | P78: 405 | Q78: 100 | R78: 1105
A79: UHE | B79: CLASS- Nonresident Out of State | C79: Prof - Graduate | D79: 76 | E79: UHE-CLASS- Nonresident Out of State: Prof - Graduate | F79: Prof - Graduate | G79: SCH | H79: 0 | I79: 0 | J79: 0 | K79: 0 | L79: 0 | M79: 0 | N79: 0 | O79: 0 | P79: 0 | Q79: 0 | R79: 0
A80: UHE | B80: Global Leadership Hospitality (Formerly HRM) | C80: Undergraduate | D80: 77 | E80: UHE-Global Leadership Hospitality (Formerly HRM): Undergraduate | F80: Undergraduate | G80: SCH | H80: 50 | I80: 335.59 | J80: 0 | K80: 385.59 | L80: 0 | M80: 0 | N80: 0 | O80: 385.59 | P80: 405 | Q80: 100 | R80: 890.59
A81: UHE | B81: Global Leadership Hospitality (Formerly HRM)-Nonresident Out of State | C81: Undergraduate | D81: 78 | E81: UHE-Global Leadership Hospitality (Formerly HRM)-Nonresident Out of State: Undergraduate | F81: Undergraduate | G81: SCH | H81: 0 | I81: 0 | J81: 0 | K81: 0 | L81: 0 | M81: 0 | N81: 0 | O81: 0 | P81: 0 | Q81: 0 | R81: 0
